Workbook

Sheet iaith - language
A1: 1 | K1: 1 | L1: Cymraeg/Welsh
L2: Saesneg/English
L3: Dewiswch os gwelwch yn dda / Please select
A4: =IF('iaith - language'!$K$1=3,"", IF('iaith - language'!$K$1=2,VLOOKUP(A1,Text!$A$2:$C$366,2,0),VLOOKUP(A1,Text!$A$2:$C$366,3,0))) -> Proses wirio data Cylch 1 - data i'w defnyddio ar gyfer Setliad 2025-26
A6: Dewiswch iaith / Choose your preferred language:

Sheet Text (hidden)
B1: English | C1: Welsh
A2: 1 | B2: Round 1 Data verification process - data for use in the 2025-26 Settlement | C2: Proses wirio data Cylch 1 - data i'w defnyddio ar gyfer Setliad 2025-26
A3: 2 | B3: Round 1 data verification process | C3: Proses gwiriad data cylch 1
A4: 3 | B4: Please select your authority name: | C4: Dewiswch enw eich awdurdod:
A5: 4 | B5: Pupils at Independent schools | C5: Disgyblion mewn ysgolion annibynnol
A6: 5 | B6: You are requested to notify us of any pupils educated in independent schools for pupils without statements of special educational need (excluding special schools) | C6: Gofynnir ichi roi gwybod inni am unrhyw ddisgyblion sy'n cael eu haddysgu mewn ysgolion annibynnol ar gyfer disgyblion nad ydynt ar ddatganiad anghenion addysgol arbennig (ac eithrio ysgolion arbennig)
A7: 6 | B7: for whom your authority pays full tuition fees as recorded on line 1.3.5 on the Section 52 outturn return. This information should be provided in respect of the position at April 2024. | C7: y mae eich awdurdod yn talu ffïoedd dysgu llawn ar eu cyfer, fel sydd wedi'i gofnodi ar llinell 1.3.5 o adroddiad alldro Adran 52. Dylid darparu'r wybodaeth hon ar gyfer y sefyllfa fel yr oedd ym mis Ebrill 2024.
A8: 7 | B8: These pupils are directly credited in the SSAs and it is therefore very important that this information is provided to ensure the accuracy of the calculations. | C8: Rhoddir credyd yn uniongyrchol ar gyfer y disgyblion hyn yn yr Asesiadau o Wariant Safonol, felly mae'n bwysig iawn fod yr wybodaeth hon yn cael ei darparu er mwyn sicrhau bod y cyfrifiadau'n gywir.
A9: 8 | B9: Please provide the figures to us in the table below. Note that it will be assumed that there are no such pupils unless otherwise indicated. | C9: Darparwch y ffigurau inni yn y tabl isod. Sylwch y cymerir yn ganiataol nad oes disgyblion o'r fath os na ddywedir yn wahanol.
A10: 9 | B10: Data set | C10: Set ddata
A11: 10 | B11: Pupils in N2 or reception year groups in nursery or primary schools | C11: Disgyblion mewn grwpiau blwyddyn meithrin 2 neu flwyddyn derbyn mewn ysgolion meithrin neu gynradd
A12: 11 | B12: Primary school pupils in year groups 1 and above | C12: Disgyblion ysgol gynradd yng ngrwpiau blwyddyn 1 ac uwch
A13: 12 | B13: Secondary school pupils in year groups 10 and 11 | C13: Disgyblion ysgol uwchradd yng ngrwpiau blwyddyn 10 ac 11
A14: 13 | B14: Secondary school pupils in year groups 7-11 | C14: Disgyblion ysgol uwchradd yng ngrwpiau blwyddyn 7-11
A15: 14 | B15: Secondary school pupils in year groups 12-14 | C15: Disgyblion ysgol uwchradd yng ngrwpiau blwyddyn 12-14
A16: 15 | B16: The non-financial data originally sourced by Local Authorities is used to calculate Standard Spending Assessments within the Local Government Settlement. | C16: Defnyddir y data heb fod yn ariannol, a gasglwyd yn wreiddiol gan Awdurdodau Lleol, i gyfrifo Asesiadau o Wariant Safonol (SSAs) yn y Setliad Llywodraeth Leol.
A17: 16 | B17: This data has already been through various quality assurance and validation processes prior to its publication. | C17: Mae'r data hyn eisoes wedi bod drwy amryw o brosesau sicrhau ansawdd a gwirio cyn iddynt gael eu cyhoeddi.
A18: 17 | B18: The purpose of the data verification exercise is not to re-visit published estimates where the changes are minor. This process is to ensure that any significant errors or revisions to the non-financial data are identified prior to the publication of the Local Government Settlement. | C18: Ni ddylid defnyddio’r broses wirio hon i roi sylw i amcangyfrifon sydd wedi eu cyhoeddi os yw’r newidiadau dan sylw yn rhai mân. Yn hytrach, nod y broses yw sicrhau bod unrhyw gamgymeriadau sylweddol yn y data heb fod yn ariannol, neu newidiadau o bwys iddynt, yn cael eu nodi cyn cyhoeddi'r Setliad Llywodraeth Leol.
A19: 18 | B19: Query form for comments on data | C19: Ffurflen ymholiadau ar gyfer sylwadau ar y data
A20: 19 | B20: Topic area | C20: Pwnc
A21: 20 | B21: Data point | C21: Pwynt data
A22: 21 | B22: Verification figure | C22: Ffigur gwiriad
A23: 22 | B23: Data Repository | C23: Ystorfa Ddata
A24: 23 | B24: Updated Figure | C24: Ffigur diwygiedig
A25: 24 | B25: Only if agreed by data repository | C25: Dim ond os cytunwyd gan yr ystorfa ddata
A26: 25 | B26: Comments/Queries | C26: Sylwadau/Ymholiadau
A27: 26 | B27: If you have agreed an update to your published data with the relevant data repository, please provide details here | C27: Os ydych chi wedi cael cytundeb yr ystorfa ddata berthnasol i ddiwygio eich data cyhoeddedig, rhowch fanylion
A28: 27 | B28: Local Government Finance Policy and Sustainability Division, Welsh Government | C28: Yr Is-adran Polisi Cyllid Llywodraeth Leol a Chynaliadwyedd, Llywodraeth Cymru
A29: 28 | B29: Please return by email to: | C29: I'w ddychwelyd drwy e-bost i:
A30: 29 | B30: Welsh Government | C30: Llywodraeth Cymru
A31: 30 | B31: For queries please contact: | C31: Os oes gennych ymholiadau, cysylltwch â:
A32: 31 | B32: For detailed descriptions on the data in this spreadsheet please see the data note document for round 1 verification on the website: | C32: Mae disgrifiadau manwl o'r data yn y daenlen hon i'w cael yn y ddogfen nodiadau ar y data ar gyfer gwiriad cylch 1, sydd ar gael ar y wefan.
A33: 32 | B33: https://gov.wales/topics/localgovernment/finandfunding/settlement/local-gov-verification-settlement-2022-23/?lang=en | C33: https://llyw.cymru/topics/localgovernment/finandfunding/settlement/local-gov-verification-settlement-2022-23/?skip=1&lang=cy
A34: 33 | B34: Notes: | C34: Nodiadau:
A35: 34 | B35: 1 This data set is taken as a 3 year average in the settlement. | C35: 1 Caiff y set ddata hon ei chymryd fel cyfartaledd 3 blynedd yn y setliad.
A36: 35 | B36: 2 The dataset 'Private Sector Dwelling Stock' was removed from the Revenue Support Grant settlement calculations, although is included within the General Capital Funding (GCF) formulae | C36: 2 Cafodd y set ddata 'Stoc Anheddau'r Sector Preifat' ei hepgor o'r cyfrifiadau ar gyfer y setliad Grant Cynnal Refeniw, ond mae wedi ei chynnwys yn y fformiwlâu ar gyfer Cyllid Cyfalaf Cyffredinol
A37: 36 | B37: 3 This data was not used in 2012-13 | C37: 3 Ni ddefnyddiwyd y data hyn yn 2012-13
B38: Data - English | C38: Data - Welsh
A39: 38 | B39: PLANNING APPLICATIONS | C39: CEISIADAU CYNLLUNIO
A40: 39 | B40: TAX CREDIT CLAIMANTS | C40: HAWLWYR CREDYD TRETH
A41: 40 | B41: ROADS DATA | C41: DATA FFYRDD
A42: 41 | B42: TRAFFIC FLOW | C42: LLIF TRAFFIG
A43: 42 | B43: PRIVATE SECTOR DWELLING STOCK | C43: STOC ANHEDDAU'R SECTOR PREIFAT
A44: 43 | B44: LAND AREA | C44: ARWYNEBEDD TIR
A45: 44 | B45: POPULATION DATA | C45: DATA POBLOGAETH
A46: 45 | B46: POPULATION ESTIMATES DATA | C46: DATA AMCANGYFRIFON POBLOGAETH
A47: 46 | B47: HOUSING DATA - GCF | C47: DATA TAI - CYLLID CYFALAF CYFFREDINOL
A48: 47 | B48: LAND DRAINAGE PRECEPTS | C48: PRAESEPTAU DRAENIO TIR
A49: 48 | B49: LENGTH OF PROTECTED COASTLINE | C49: HYD YR ARFORDIR A WARCHODIR
A50: 49 | B50: FARMS | C50: FFERMYDD
A51: 50 | B51: HOMELESSNESS DATA | C51: DATA DIGARTREFEDD
A52: 51 | B52: Planning Applications Received | C52: Ceisiadau Cynllunio a Gafwyd
A53: 52 | B53: Dependent children in out of work families | C53: Plant dibynnol mewn teuluoedd di-waith
A54: 53 | B54: A County road length (km) | C54: Hyd ffyrdd A y sir (km)
A55: 54 | B55: Built-up A County road length (km) | C55: Hyd ffyrdd A y sir, adeiledig (km)
A56: 55 | B56: B and C road length (km) | C56: Hyd ffyrdd B ac C (km)
A57: 56 | B57: Built-up B and C road length (km) | C57: Hyd ffyrdd B ac C, adeiledig (km)
A58: 57 | B58: Minor surfaced road length (km) | C58: Hyd is-ffyrdd â wyneb caled (km)
A59: 58 | B59: Built-up minor surfaced road length (km) | C59: Hyd is-ffyrdd â wyneb caled, adeiledig (km)
A60: 59 | B60: Traffic flow (vehicles) | C60: Llif traffig (cerbydau)
A61: 60 | B61: Total Homelessness Decisions | C61: Cyfanswm Penderfyniadau Digartrefedd
A62: 61 | B62: Private sector dwelling stock | C62: Stoc anheddau'r sector preifat
A63: 62 | B63: Land area (hectares) | C63: Arwynebedd tir (hectarau)
A64: 63 | B64: Motor vehicle traffic on all principal roads | C64: Traffig cerbydau modur ar yr holl prf ffyrdd
A65: 64 | B65: Owner-occupied, privately rented, intermediate and other tenures | C65: Yn eiddo i berchen-feddianwyr, wedi'u rhentu'n breifat, deiliadaeth ganolradd a deiliadaethau eraill
A66: 65 | B66: Area in hectares | C66: Arwynebedd mewn hectarau
A67: 66 | B67: Total population | C67: Cyfanswm y boblogaeth
A68: 67 | B68: Total population | C68: Cyfanswm y boblogaeth
A69: 68 | B69: Population aged 3 | C69: Poblogaeth 3 oed
A70: 69 | B70: Population aged 3 to 11 | C70: Poblogaeth 3 i 11 oed
A71: 70 | B71: Population aged 3 to 16 | C71: Poblogaeth 3 i 16 oed
A72: 71 | B72: Population aged 11 to 15 | C72: Poblogaeth 11 i 15 oed
A73: 72 | B73: Population aged 11 to 20 | C73: Poblogaeth 11 i 20 oed
A74: 73 | B74: Population aged 16 and over | C74: Poblogaeth 16 oed a throsodd
A75: 74 | B75: Population aged 16 to 18 | C75: Poblogaeth 16 i 18 oed
A76: 75 | B76: Population aged 0 to 17 | C76: Poblogaeth 0 i 17 oed
A77: 76 | B77: Population aged 18 to 64 | C77: Poblogaeth 18 i 64 oed
A78: 77 | B78: Population aged 18 and over | C78: Poblogaeth 18 oed a throsodd
A79: 78 | B79: Population aged under 60 | C79: Poblogaeth o dan 60 oed
A80: 79 | B80: Population aged 60 and over | C80: Poblogaeth 60 oed a throsodd
A81: 80 | B81: Population aged 85 and over | C81: Poblogaeth 85 oed a throsodd
A82: 81 | B82: Working age population (16-65M/F) | C82: Poblogaeth oedran gweithio (16-65G/B)
A83: 82 | B83: Mid-Year Population Estimates all ages | C83: Amcangyfrifon Poblogaeth Ganol Blwyddyn, pob oed
A84: 83 | B84: Mid-Year Population Estimates aged 18 and over | C84: Amcangyfrifon Poblogaeth Ganol Blwyddyn, 18 oed a throsodd
A85: 84 | B85: Mid-Year Population Estimates aged 65 and over | C85: Amcangyfrifon Poblogaeth Ganol Blwyddyn, 65 oed a throsodd
A86: 85 | B86: Amount spent on mandatory Disabled Facilities Grants completed by area (£s) | C86: Swm a wariwyd ar grantiau cyfleusterau i'r anabl wedi'u cwblhau (£s)
A87: 86 | B87: Amount spent on DFGs completed (£s) | C87: Swm a wariwyd ar grantiau cyfleusterau i'r anabl wedi'u cwblhau (£s)
A88: 87 | B88: Special levies by Internal Drainage Boards | C88: Ardollau arbennig gan Fyrddau Draenio Mewnol
A89: 88 | B89: Length (km) | C89: Hyd (km)
A90: 89 | B90: Number of economically active farms | C90: Nifer y ffermydd economaidd weithgar
A91: 90 | B91: Land Drainage Precepts | C91: Praeseptau Draenio Tir
A92: 91 | B92: Length of protected coastline | C92: Hyd yr arfordir a warchodir
A93: 92 | B93: Number of Farms | C93: Nifer y Ffermydd
A94: 93 | B94: HM Revenue & Customs | C94: Cyllid a Thollau EM
A95: 143 | B95: Total street lighting units | C95: Cyfanswm yr unedau goleuadau stryd
A96: 144 | B96: TRADING PREMISES | C96: EIDDO MASNACHU
A97: 145 | B97: Number of Trading Premises | C97: Nifer yr Eiddo Masnachu
A98: 146 | B98: FOOD PREMISES | C98: EIDDO BWYD
A99: 147 | B99: Number of Food Premises | C99: Nifer yr Eiddo Bwyd
A100: 148 | B100: MORTALITY DATA | C100: DATA MARWOLAETHAU
A101: 149 | B101: Registered number of deaths | C101: Nifer y marwolaethau wedi'u cofrestru
A102: 150 | B102: COUNCIL TAX REDUCTION SCHEMES (CTRS) DATA | C102: DATA CYNLLUNIAU GOSTYNGIADAU'R DRETH GYNGOR
A103: 151 | B103: CTRS Caseload | C103: Llwyth achosion Cynlluniau Gostyngiadau'r Dreth Gyngor
A104: 152 | B104: CTRS Expenditure | C104: Gwariant Cynlluniau Gostyngiadau'r Dreth Gyngor
A105: 152.5 | B105: Covid-19 CTRS support | C105: Cefnogaeth CTRS Covid-19
A106: 153 | B106: Valuation Office Agency (VOA) | C106: Asiantaeth y Swyddfa Brisio
A107: 154 | B107: STREET LIGHTING UNITS | C107: UNEDAU GOLEUADAU STRYD
A108: 158 | B108: Office for National Statistics (ONS) | C108: Y Swyddfa Ystadegau Gwladol
A109: 159 | B109: SHIPS ARRIVING AT PORTS | C109: LLONGAU SY'N CYRRAEDD PORTHLADDOEDD
A110: 160 | B110: Number of ships arriving at ports | C110: Nifer y llongau sy'n cyrraedd porthladdoedd
A111: 161 | B111: TOURISM DATA | C111: DATA TWRISTIAETH
A112: 162 | B112: Tourist nights (thousands) inc AirBnb | C112: Nosweithiau twristiaid (miloedd) gan gynnwys AirBnb
A113: 163 | B113: Tourist days (thousands) | C113: Diwrnodau twristiaid (miloedd)
A114: 164 | B114: Scarborough Tourism Economic Activity Monitor (STEAM) | C114: Scarborough Tourism Economic Activity Monitor (STEAM)
A115: 165 | B115: UNEMPLOYMENT BENEFIT CLAIMANT COUNT DATA | C115: DATA AR GANRAN YR HAWLWYR BUDD-DAL DIWEITHDRA
A116: 166 | B116: Numbers of claimants | C116: Nifer yr hawlwyr
A117: 178 | B117: HOUSING BENEFIT CLAIMANTS | C117: NIFER YR HAWLWYR BUDD-DAL TAI
A118: 179 | B118: BENEFITS CLAIMANTS DATA | C118: DATA AR HAWLWYR BUDD-DALIADAU
A119: 192 | B119: Claimant Count Data | C119: Data Hawlwyr Budd-dal
A120: 193 | B120: Housing Benefit Claimants | C120: Nifer Yr Hawlwyr Budd-dal Tai
A121: 194 | B121: Number of Income Support Claimants, aged 18-64 | C121: Nifer yr Hawlwyr Cymhorthdal Incwm, 18-64 oed
A122: 195 | B122: Number of Income Based Jobseeker’s Allowance Recipients, aged 18-64 | C122: Nifer y Derbynwyr Lwfans Ceisio Swydd ar Sail Incwm, 18-64 oed
A123: 196 | B123: Number of Pension Credit Claimants, aged 18-64 | C123: Nifer yr hawlwyr Credyd Pensiwn, 18-64 oed
A124: 197 | B124: Number of people on Universal Credit (not in employment) aged 18-64 | C124: Nifer y rhai sydd yn derbyn Credyd Cynhwysol (ddim mewn cyflogaeth) 18-64 oed
A125: 198 | B125: Total number of Income Support Claimants | C125: Cyfanswm yr Hawlwyr Cymhorthdal Incwm
A126: 199 | B126: Total number of Income Based Jobseeker’s Allowance Recipients | C126: Cyfanswm y Derbynwyr Lwfans Ceisio Swydd ar Sail Incwm
A127: 200 | B127: Total number of Pension Credit Claimants | C127: Cyfanswm Hawlwyr Credyd Pensiwn
A128: 201 | B128: Total number of people on Universal Credit (not in employment) | C128: Cyfanswm y rhai sy’n derbyn Credyd Cynhwysol (ddim mewn cyflogaeth)
A129: 202 | B129: Number of Severe Disablement Allowance Claimants aged 18-64 | C129: Nifer yr Hawlwyr Lwfans Anabledd Difrifol, 18-64 oed
A130: 203 | B130: Number of Disability Living Allowance Claimants aged 18-64 | C130: Nifer yr Hawlwyr Lwfans Byw i'r Anabl, 18-64 oed | E130: To use | F130: 1
A131: 204 | B131: Number of Personal Independence Payment Claimants aged 18-64 | C131: Nifer yr Hawlwyr Taliad Annibyniaeth Bersonol sydd yn 18-64 oed | D131: 2 | E131: =IF('iaith - language'!$K$1=2,Text!B142,Text!C142) -> Dewiswch / Select
A132: 205 | B132: Pension Credit (PC) claimants aged 65+ | C132: Hawlwyr Credyd Pensiwn, 65 oed a hŷn | D132: 3 | E132: =IF('iaith - language'!$K$1=2,Text!B143,Text!C143) -> Sir Ynys Môn
A133: 206 | B133: Total Income Support (IS), Job Seekers Allowance (JSA) and Pension Credit (PC) claimants | C133: Cyfanswn yr hawlwyr Cymhorthdal Incwm, Lwfans Ceisio Gwaith, a Chredyd Pensiwn | D133: 4 | E133: =IF('iaith - language'!$K$1=2,Text!B144,Text!C144) -> Gwynedd
A134: 207 | B134: Severe Disablement Allowence (SDA) and Disability Living Allowence (DLA) claimants aged 18-64 | C134: Pobl (18-64) sy'n hawlio Lwfans Anabledd Difrifol a Lwfans Byw i'r Anabl | D134: 5 | E134: =IF('iaith - language'!$K$1=2,Text!B145,Text!C145) -> Conwy
A135: 208 | B135: Department for Work and Pensions (DWP) | C135: Yr Adran Gwaith a Phensiynau (DWP) | D135: 6 | E135: =IF('iaith - language'!$K$1=2,Text!B146,Text!C146) -> Sir Ddinbych
A136: 209 | B136: NOMIS official labour market statistics | C136: NOMIS ystadegau swyddogol y farchnad lafur | D136: 7 | E136: =IF('iaith - language'!$K$1=2,Text!B147,Text!C147) -> Sir y Fflint
A137: 210 | B137: NOMIS official labour market statistics and Department for Work and Pensions (DWP) | C137: NOMIS ystadegau swyddogol y farchnad lafur a Yr Adran Gwaith a Phensiynau (DWP) | D137: 8 | E137: =IF('iaith - language'!$K$1=2,Text!B148,Text!C148) -> Wrecsam
A138: 271 | B138: LGFPSettlement@Gov.Wales | C138: LGFPSettlement@Llyw.Cymru | D138: 9 | E138: =IF('iaith - language'!$K$1=2,Text!B149,Text!C149) -> Powys
A139: 272 | B139: Maritime and shipping statistics, Department for Transport | C139: Ystadegau morol a llongau, Yr Adran Drafnidiaeth | D139: 10 | E139: =IF('iaith - language'!$K$1=2,Text!B150,Text!C150) -> Sir Ceredigion
A140: 273 | B140: *Data not submitted | C140: *Data heb ei gyflwyno | D140: 11 | E140: =IF('iaith - language'!$K$1=2,Text!B151,Text!C151) -> Sir Benfro
B141: LA name English | C141: LA name Welsh | D141: 12 | E141: =IF('iaith - language'!$K$1=2,Text!B152,Text!C152) -> Sir Gaerfyrddin
A142: 116 | B142: Please select | C142: Dewiswch / Select | D142: 13 | E142: =IF('iaith - language'!$K$1=2,Text!B153,Text!C153) -> Abertawe
A143: 117 | B143: Isle of Anglesey | C143: Sir Ynys Môn | D143: 14 | E143: =IF('iaith - language'!$K$1=2,Text!B154,Text!C154) -> Castell-nedd Port Talbot
A144: 118 | B144: Gwynedd | C144: Gwynedd | D144: 15 | E144: =IF('iaith - language'!$K$1=2,Text!B155,Text!C155) -> Pen-y-bont ar Ogwr
A145: 119 | B145: Conwy | C145: Conwy | D145: 16 | E145: =IF('iaith - language'!$K$1=2,Text!B156,Text!C156) -> Bro Morgannwg
A146: 120 | B146: Denbighshire | C146: Sir Ddinbych | D146: 17 | E146: =IF('iaith - language'!$K$1=2,Text!B157,Text!C157) -> Rhondda Cynon Taf
A147: 121 | B147: Flintshire | C147: Sir y Fflint | D147: 18 | E147: =IF('iaith - language'!$K$1=2,Text!B158,Text!C158) -> Merthyr Tudful
A148: 122 | B148: Wrexham | C148: Wrecsam | D148: 19 | E148: =IF('iaith - language'!$K$1=2,Text!B159,Text!C159) -> Caerffili
A149: 123 | B149: Powys | C149: Powys | D149: 20 | E149: =IF('iaith - language'!$K$1=2,Text!B160,Text!C160) -> Blaenau Gwent
A150: 124 | B150: Ceredigion | C150: Sir Ceredigion | D150: 21 | E150: =IF('iaith - language'!$K$1=2,Text!B161,Text!C161) -> Torfaen
A151: 125 | B151: Pembrokeshire | C151: Sir Benfro | D151: 22 | E151: =IF('iaith - language'!$K$1=2,Text!B162,Text!C162) -> Sir Fynwy
A152: 126 | B152: Carmarthenshire | C152: Sir Gaerfyrddin | D152: 23 | E152: =IF('iaith - language'!$K$1=2,Text!B163,Text!C163) -> Casnewydd
A153: 127 | B153: Swansea | C153: Abertawe | D153: 24 | E153: =IF('iaith - language'!$K$1=2,Text!B164,Text!C164) -> Caerdydd
A154: 128 | B154: Neath Port Talbot | C154: Castell-nedd Port Talbot | E154: =IF('iaith - language'!$K$1=2,Text!B165,Text!C165) -> Cyfanswm AU
A155: 129 | B155: Bridgend | C155: Pen-y-bont ar Ogwr
A156: 130 | B156: The Vale of Glamorgan | C156: Bro Morgannwg
A157: 131 | B157: Rhondda Cynon Taf | C157: Rhondda Cynon Taf
A158: 132 | B158: Merthyr Tydfil | C158: Merthyr Tudful
A159: 133 | B159: Caerphilly | C159: Caerffili
A160: 134 | B160: Blaenau Gwent | C160: Blaenau Gwent
A161: 135 | B161: Torfaen | C161: Torfaen
A162: 136 | B162: Monmouthshire | C162: Sir Fynwy
A163: 137 | B163: Newport | C163: Casnewydd
A164: 138 | B164: Cardiff | C164: Caerdydd
A165: 139 | B165: UA Total | C165: Cyfanswm AU
A166: 140 | B166: 1 The dataset 'Private Sector Dwelling Stock' was removed from the Revenue Support Grant settlement calculations, although is included within the General Capital Funding (GCF) formulae | C166: 1 Cafodd y set ddata 'Stoc Anheddau'r Sector Preifat' ei hepgor o'r cyfrifiadau ar gyfer y setliad Grant Cynnal Refeniw, ond mae wedi ei chynnwys yn y fformiwlâu ar gyfer Cyllid Cyfalaf Cyffredinol
A167: 141 | B167: .. The data item is not available | C167: .. Nid yw'r eitem ddata yma ar gael
A168: 142 | B168: Please note the published mid-year population have been dif
A169: 271.5 | B169: Council tax stock of properties | C169: Stoc eiddo treth cyngor
A170: 274 | B170: Valuation Office Agency (VOA) | C170: Asiantaeth y Swyddfa Brisio
A171: 600 | B171: Round 1 Data verification process - data for use in the 2025-26 Settlement | C171: Proses wirio data Cylch 1 - data i'w defnyddio ar gyfer Setliad 2025-26
A172: 601 | B172: June 2021 | C172: Mehefin 2021
A173: 602 | B173: September 2021 | C173: Medi 2021
A174: 603 | B174: December 2021 | C174: Rhagfyr 2021
A175: 604 | B175: March 2022 | C175: Mawrth 2022
A176: 605 | B176: May 2022 | C176: Mai 2022
A177: 606 | B177: April 2022 | C177: Ebrill 2022
A178: 607 | B178: October 2021 | C178: Hydref 2021
A179: 608 | B179: November 2021 | C179: Tachwedd 2021
A180: 609 | B180: December 2021 | C180: Rhagfyr 2021
A181: 610 | B181: January 2022 | C181: Ionawr 2022
A182: 611 | B182: February 2022 | C182: Chwefror 2022
A183: 612 | B183: June 2022 | C183: Mehefin 2022
A184: 613 | B184: July 2022 | C184: Gorffennaf 2022
A185: 614 | B185: August 2022 | C185: Awst 2022
A186: 615 | B186: May 2021 | C186: Mai 2021
A187: 616 | B187: August 2021 | C187: Awst 2021
A188: 300 | B188: Data used in the 2022-23 Settlement - for information purposes only | C188: Data a ddefnyddiwyd yn Setliad 2022-23 – er gwybodaeth yn unig
A189: 301 | B189: June 2020 | C189: Mehefin 2020
A190: 302 | B190: September 2020 | C190: Medi 2020
A191: 303 | B191: December 2020 | C191: Rhagfyr 2020
A192: 304 | B192: March 2021 | C192: Mawrth 2021
A193: 305 | B193: May 2021 | C193: Mai 2021
A194: 306 | B194: April 2021 | C194: Ebrill 2021
A195: 307 | B195: October 2020 | C195: Hydref 2020
A196: 308 | B196: November 2020 | C196: Tachwedd 2020
A197: 309 | B197: December 2020 | C197: Rhagfyr 2020
A198: 310 | B198: January 2021 | C198: Ionawr 2021
A199: 311 | B199: February 2021 | C199: Chwefror 2021
A200: 312 | B200: June 2021 | C200: Mehefin 2021
... 38 more rows

Sheet queryformround1
A1: 2 | C1: =IF('iaith - language'!K1=2,VLOOKUP(A1,Text!A3:C316,2),VLOOKUP(A1,Text!A3:C318,3)) -> Proses gwiriad data cylch 1
A3: 3 | C3: =IF('iaith - language'!K1=2,VLOOKUP(A3,Text!A3:C316,2),VLOOKUP(A3,Text!A3:C318,3)) -> Dewiswch enw eich awdurdod:
A5: 4 | C5: =IF('iaith - language'!$K$1=2,VLOOKUP(A5,Text!$A$3:$C$402,2,0),VLOOKUP(A5,Text!$A$3:$C$402,3,0)) -> Disgyblion mewn ysgolion annibynnol
A6: 5 | C6: =IF('iaith - language'!$K$1=2,VLOOKUP(A6,Text!$A$3:$C$402,2,0),VLOOKUP(A6,Text!$A$3:$C$402,3,0)) -> Gofynnir ichi roi gwybod inni am unrhyw ddisgyblion sy'n cael eu haddysgu mewn ysgolion annibynnol ar gyfer disgyblion nad ydynt ar ddatganiad anghenion addysgol arbennig (ac eithrio ysgolion arbennig)
A7: 6 | C7: =IF('iaith - language'!$K$1=2,VLOOKUP(A7,Text!$A$3:$C$402,2,0),VLOOKUP(A7,Text!$A$3:$C$402,3,0)) -> y mae eich awdurdod yn talu ffïoedd dysgu llawn ar eu cyfer, fel sydd wedi'i gofnodi ar llinell 1.3.5 o adroddiad alldro Adran 52. Dylid darparu'r wybodaeth hon ar gyfer y sefyllfa fel yr oedd ym mis Ebrill 2024.
A8: 7 | C8: =IF('iaith - language'!$K$1=2,VLOOKUP(A8,Text!$A$3:$C$402,2,0),VLOOKUP(A8,Text!$A$3:$C$402,3,0)) -> Rhoddir credyd yn uniongyrchol ar gyfer y disgyblion hyn yn yr Asesiadau o Wariant Safonol, felly mae'n bwysig iawn fod yr wybodaeth hon yn cael ei darparu er mwyn sicrhau bod y cyfrifiadau'n gywir.
A9: 8 | C9: =IF('iaith - language'!$K$1=2,VLOOKUP(A9,Text!$A$3:$C$402,2,0),VLOOKUP(A9,Text!$A$3:$C$402,3,0)) -> Darparwch y ffigurau inni yn y tabl isod. Sylwch y cymerir yn ganiataol nad oes disgyblion o'r fath os na ddywedir yn wahanol.
A10: 9
A11: 4 | C11: =IF('iaith - language'!$K$1=2,VLOOKUP(A10,Text!$A$3:$C$402,2,0),VLOOKUP(A10,Text!$A$3:$C$402,3,0)) -> Set ddata | D11: =IF('iaith - language'!$K$1=2,VLOOKUP(A11,Text!$A$3:$C$402,2,0),VLOOKUP(A11,Text!$A$3:$C$402,3,0)) -> Disgyblion mewn ysgolion annibynnol
A12: 10 | C12: =IF('iaith - language'!$K$1=2,VLOOKUP(A12,Text!$A$3:$C$402,2,0),VLOOKUP(A12,Text!$A$3:$C$402,3,0)) -> Disgyblion mewn grwpiau blwyddyn meithrin 2 neu flwyddyn derbyn mewn ysgolion meithrin neu gynradd
A13: 11 | C13: =IF('iaith - language'!$K$1=2,VLOOKUP(A13,Text!$A$3:$C$402,2,0),VLOOKUP(A13,Text!$A$3:$C$402,3,0)) -> Disgyblion ysgol gynradd yng ngrwpiau blwyddyn 1 ac uwch
A14: 12 | C14: =IF('iaith - language'!$K$1=2,VLOOKUP(A14,Text!$A$3:$C$402,2,0),VLOOKUP(A14,Text!$A$3:$C$402,3,0)) -> Disgyblion ysgol uwchradd yng ngrwpiau blwyddyn 10 ac 11
A15: 13 | C15: =IF('iaith - language'!$K$1=2,VLOOKUP(A15,Text!$A$3:$C$402,2,0),VLOOKUP(A15,Text!$A$3:$C$402,3,0)) -> Disgyblion ysgol uwchradd yng ngrwpiau blwyddyn 7-11
A16: 14 | C16: =IF('iaith - language'!$K$1=2,VLOOKUP(A16,Text!$A$3:$C$402,2,0),VLOOKUP(A16,Text!$A$3:$C$402,3,0)) -> Disgyblion ysgol uwchradd yng ngrwpiau blwyddyn 12-14
A18: 15 | C18: =IF('iaith - language'!K1=2,VLOOKUP(A18,Text!A3:C316,2),VLOOKUP(A18,Text!A3:C318,3)) -> Defnyddir y data heb fod yn ariannol, a gasglwyd yn wreiddiol gan Awdurdodau Lleol, i gyfrifo Asesiadau o Wariant Safonol (SSAs) yn y Setliad Llywodraeth Leol.
A19: 16 | C19: =IF('iaith - language'!K1=2,VLOOKUP(A19,Text!A3:C316,2),VLOOKUP(A19,Text!A3:C318,3)) -> Mae'r data hyn eisoes wedi bod drwy amryw o brosesau sicrhau ansawdd a gwirio cyn iddynt gael eu cyhoeddi.
A20: 17 | C20: =IF('iaith - language'!K1=2,VLOOKUP(A20,Text!A3:C316,2),VLOOKUP(A20,Text!A3:C318,3)) -> Ni ddylid defnyddio’r broses wirio hon i roi sylw i amcangyfrifon sydd wedi eu cyhoeddi os yw’r newidiadau dan sylw yn rhai mân. Yn hytrach, nod y broses yw sicrhau bod unrhyw gamgymeriadau sylweddol yn y data heb fod yn ariannol, neu newidiadau o bwys iddynt, yn cael eu nodi cyn cyhoeddi'r Setliad Llywodraeth Leol.
A22: 18 | C22: =IF('iaith - language'!$K$1=2,VLOOKUP(A22,Text!$A$3:$C$402,2,0),VLOOKUP(A22,Text!$A$3:$C$402,3,0)) -> Ffurflen ymholiadau ar gyfer sylwadau ar y data
E24: 20 | F24: 21 | G24: 22 | H24: 23 | I24: 25
A25: 19 | C25: =IF('iaith - language'!$K$1=2,VLOOKUP(A25,Text!$A$3:$C$402,2,0),VLOOKUP(A25,Text!$A$3:$C$402,3,0)) -> Pwnc | D25: =IF('iaith - language'!$K$1=2,VLOOKUP(A10,Text!$A$3:$C$402,2,0),VLOOKUP(A10,Text!$A$3:$C$402,3,0)) -> Set ddata | E25: =IF('iaith - language'!$K$1=2,VLOOKUP(E24,Text!$A$3:$C$402,2,0),VLOOKUP(E24,Text!$A$3:$C$402,3,0)) -> Pwynt data | F25: =IF('iaith - language'!$K$1=2,VLOOKUP(F24,Text!$A$3:$C$402,2,0),VLOOKUP(F24,Text!$A$3:$C$402,3,0)) -> Ffigur gwiriad | G25: =IF('iaith - language'!K1=2,VLOOKUP(G24,Text!A3:C316,2),VLOOKUP(G24,Text!A3:C318,3)) -> Ystorfa Ddata | H25: =IF('iaith - language'!K1=2,VLOOKUP(H24,Text!A3:C316,2),VLOOKUP(H24,Text!A3:C318,3)) -> Ffigur diwygiedig | I25: =IF('iaith - language'!K1=2,VLOOKUP(I24,Text!A3:C316,2),VLOOKUP(I24,Text!A3:C318,3)) -> Sylwadau/Ymholiadau | J25: 24
H26: =IF('iaith - language'!K1=2,VLOOKUP(J25,Text!A3:C316,2),VLOOKUP(J25,Text!A3:C318,3)) -> Dim ond os cytunwyd gan yr ystorfa ddata | I26: =IF('iaith - language'!K1=2,VLOOKUP(J26,Text!A3:C316,2),VLOOKUP(J26,Text!A3:C318,3)) -> Os ydych chi wedi cael cytundeb yr ystorfa ddata berthnasol i ddiwygio eich data cyhoeddedig, rhowch fanylion | J26: 26
A27: 38 | B27: 51 | C27: =IF('iaith - language'!$K$1=2,VLOOKUP(A27,Text!$A$3:$C$402,2,0),VLOOKUP(A27,Text!$A$3:$C$402,3,0)) -> CEISIADAU CYNLLUNIO | D27: =IF('iaith - language'!$K$1=2,VLOOKUP(B27,Text!$A$3:$C$402,2,0),VLOOKUP(B27,Text!$A$3:$C$402,3,0)) -> Ceisiadau Cynllunio a Gafwyd | E27: ='2025-26 Settlement data'!D7 -> 2023-06-01 | F27: =VLOOKUP(Text!$F$130,'2025-26 Settlement data'!$B$9:$DG$30,$K27,FALSE) ->  | G27: =IF('iaith - language'!K1=2,VLOOKUP(A29,Text!A3:C316,2),VLOOKUP(A29,Text!A3:C318,3)) -> Llywodraeth Cymru | J27: 109 | K27: 3
E28: ='2025-26 Settlement data'!E7 -> 2023-09-01 | F28: =VLOOKUP(Text!$F$130,'2025-26 Settlement data'!$B$9:$DG$30,$K28,FALSE) ->  | J28: 110 | K28: 4
A29: 29 | E29: ='2025-26 Settlement data'!F7 -> 2023-12-01 | F29: =VLOOKUP(Text!$F$130,'2025-26 Settlement data'!$B$9:$DG$30,$K29,FALSE) ->  | J29: 111 | K29: 5
E30: ='2025-26 Settlement data'!G7 -> 2024-03-01 | F30: =VLOOKUP(Text!$F$130,'2025-26 Settlement data'!$B$9:$DG$30,$K30,FALSE) ->  | J30: 112 | K30: 6
A31: 42 | B31: 64 | C31: =IF('iaith - language'!$K$1=2,VLOOKUP(A31,Text!$A$3:$C$402,2,0),VLOOKUP(A31,Text!$A$3:$C$402,3,0)) -> STOC ANHEDDAU'R SECTOR PREIFAT | D31: =IF('iaith - language'!$K$1=2,VLOOKUP(B31,Text!$A$3:$C$402,2,0),VLOOKUP(B31,Text!$A$3:$C$402,3,0)) -> Yn eiddo i berchen-feddianwyr, wedi'u rhentu'n breifat, deiliadaeth ganolradd a deiliadaethau eraill | E31: =VLOOKUP(0,#REF!,K31,FALSE) ->  | F31: =VLOOKUP(Text!$F$130,#REF!,$K31,FALSE) ->  | G31: =IF('iaith - language'!K1=2,VLOOKUP(A29,Text!A3:C316,2),VLOOKUP(A29,Text!A3:C318,3)) -> Llywodraeth Cymru | I31: Do not verify | K31: =K30+1 -> 7
A32: 43 | B32: 65 | C32: =IF('iaith - language'!$K$1=2,VLOOKUP(A32,Text!$A$3:$C$402,2,0),VLOOKUP(A32,Text!$A$3:$C$402,3,0)) -> ARWYNEBEDD TIR | D32: =IF('iaith - language'!$K$1=2,VLOOKUP(B32,Text!$A$3:$C$402,2,0),VLOOKUP(B32,Text!$A$3:$C$402,3,0)) -> Arwynebedd mewn hectarau | E32: ='2025-26 Settlement data'!I7 -> 2024-05-01 | F32: =VLOOKUP(Text!$F$130,'2025-26 Settlement data'!$B$9:$DG$30,$K32,FALSE) ->  | G32: =IF('iaith - language'!K1=2,VLOOKUP(A29,Text!A3:C316,2),VLOOKUP(A29,Text!A3:C318,3)) -> Llywodraeth Cymru | J32: 113 | K32: =K31+1 -> 8
A33: 44 | B33: 66 | C33: =IF('iaith - language'!$K$1=2,VLOOKUP(A33,Text!$A$3:$C$402,2,0),VLOOKUP(A33,Text!$A$3:$C$402,3,0)) -> DATA POBLOGAETH | D33: =IF('iaith - language'!$K$1=2,VLOOKUP(B33,Text!$A$3:$C$402,2,0),VLOOKUP(B33,Text!$A$3:$C$402,3,0)) -> Cyfanswm y boblogaeth | E33: =VLOOKUP(0,#REF!,K33,FALSE) ->  | F33: =VLOOKUP(Text!$F$130,#REF!,$K33,FALSE) ->  | G33: =IF('iaith - language'!K1=2,VLOOKUP(A29,Text!A3:C316,2),VLOOKUP(A29,Text!A3:C318,3)) -> Llywodraeth Cymru | J33: 99 | K33: =K32+1 -> 9
B34: 68 | D34: =IF('iaith - language'!$K$1=2,VLOOKUP(B34,Text!$A$3:$C$402,2,0),VLOOKUP(B34,Text!$A$3:$C$402,3,0)) -> Poblogaeth 3 oed | E34: =VLOOKUP(0,#REF!,K34,FALSE) ->  | F34: =VLOOKUP(Text!$F$130,#REF!,$K34,FALSE) ->  | K34: 10
B35: 69 | D35: =IF('iaith - language'!$K$1=2,VLOOKUP(B35,Text!$A$3:$C$402,2,0),VLOOKUP(B35,Text!$A$3:$C$402,3,0)) -> Poblogaeth 3 i 11 oed | E35: =VLOOKUP(0,#REF!,K35,FALSE) ->  | F35: =VLOOKUP(Text!$F$130,#REF!,$K35,FALSE) ->  | K35: 11
B36: 70 | D36: =IF('iaith - language'!$K$1=2,VLOOKUP(B36,Text!$A$3:$C$402,2,0),VLOOKUP(B36,Text!$A$3:$C$402,3,0)) -> Poblogaeth 3 i 16 oed | E36: =VLOOKUP(0,#REF!,K36,FALSE) ->  | F36: =VLOOKUP(Text!$F$130,#REF!,$K36,FALSE) ->  | K36: 12
B37: 71 | D37: =IF('iaith - language'!$K$1=2,VLOOKUP(B37,Text!$A$3:$C$402,2,0),VLOOKUP(B37,Text!$A$3:$C$402,3,0)) -> Poblogaeth 11 i 15 oed | E37: =VLOOKUP(0,#REF!,K37,FALSE) ->  | F37: =VLOOKUP(Text!$F$130,#REF!,$K37,FALSE) ->  | K37: 13
B38: 72 | D38: =IF('iaith - language'!$K$1=2,VLOOKUP(B38,Text!$A$3:$C$402,2,0),VLOOKUP(B38,Text!$A$3:$C$402,3,0)) -> Poblogaeth 11 i 20 oed | E38: =VLOOKUP(0,#REF!,K38,FALSE) ->  | F38: =VLOOKUP(Text!$F$130,#REF!,$K38,FALSE) ->  | K38: 14
B39: 73 | D39: =IF('iaith - language'!$K$1=2,VLOOKUP(B39,Text!$A$3:$C$402,2,0),VLOOKUP(B39,Text!$A$3:$C$402,3,0)) -> Poblogaeth 16 oed a throsodd | E39: =VLOOKUP(0,#REF!,K39,FALSE) ->  | F39: =VLOOKUP(Text!$F$130,#REF!,$K39,FALSE) ->  | K39: 15
B40: 74 | D40: =IF('iaith - language'!$K$1=2,VLOOKUP(B40,Text!$A$3:$C$402,2,0),VLOOKUP(B40,Text!$A$3:$C$402,3,0)) -> Poblogaeth 16 i 18 oed | E40: =VLOOKUP(0,#REF!,K40,FALSE) ->  | F40: =VLOOKUP(Text!$F$130,#REF!,$K40,FALSE) ->  | K40: 16
B41: 75 | D41: =IF('iaith - language'!$K$1=2,VLOOKUP(B41,Text!$A$3:$C$402,2,0),VLOOKUP(B41,Text!$A$3:$C$402,3,0)) -> Poblogaeth 0 i 17 oed | E41: =VLOOKUP(0,#REF!,K41,FALSE) ->  | F41: =VLOOKUP(Text!$F$130,#REF!,$K41,FALSE) ->  | K41: 17
B42: 76 | D42: =IF('iaith - language'!$K$1=2,VLOOKUP(B42,Text!$A$3:$C$402,2,0),VLOOKUP(B42,Text!$A$3:$C$402,3,0)) -> Poblogaeth 18 i 64 oed | E42: =VLOOKUP(0,#REF!,K42,FALSE) ->  | F42: =VLOOKUP(Text!$F$130,#REF!,$K42,FALSE) ->  | K42: 18
B43: 77 | D43: =IF('iaith - language'!$K$1=2,VLOOKUP(B43,Text!$A$3:$C$402,2,0),VLOOKUP(B43,Text!$A$3:$C$402,3,0)) -> Poblogaeth 18 oed a throsodd | E43: =VLOOKUP(0,#REF!,K43,FALSE) ->  | F43: =VLOOKUP(Text!$F$130,#REF!,$K43,FALSE) ->  | K43: 19
B44: 78 | D44: =IF('iaith - language'!$K$1=2,VLOOKUP(B44,Text!$A$3:$C$402,2,0),VLOOKUP(B44,Text!$A$3:$C$402,3,0)) -> Poblogaeth o dan 60 oed | E44: =VLOOKUP(0,#REF!,K44,FALSE) ->  | F44: =VLOOKUP(Text!$F$130,#REF!,$K44,FALSE) ->  | K44: 20
B45: 79 | D45: =IF('iaith - language'!$K$1=2,VLOOKUP(B45,Text!$A$3:$C$402,2,0),VLOOKUP(B45,Text!$A$3:$C$402,3,0)) -> Poblogaeth 60 oed a throsodd | E45: =VLOOKUP(0,#REF!,K45,FALSE) ->  | F45: =VLOOKUP(Text!$F$130,#REF!,$K45,FALSE) ->  | K45: 21
B46: 80 | D46: =IF('iaith - language'!$K$1=2,VLOOKUP(B46,Text!$A$3:$C$402,2,0),VLOOKUP(B46,Text!$A$3:$C$402,3,0)) -> Poblogaeth 85 oed a throsodd | E46: =VLOOKUP(0,#REF!,K46,FALSE) ->  | F46: =VLOOKUP(Text!$F$130,#REF!,$K46,FALSE) ->  | K46: 22
B47: 81 | D47: =IF('iaith - language'!$K$1=2,VLOOKUP(B47,Text!$A$3:$C$402,2,0),VLOOKUP(B47,Text!$A$3:$C$402,3,0)) -> Poblogaeth oedran gweithio (16-65G/B) | E47: =VLOOKUP(0,#REF!,K47,FALSE) ->  | F47: =VLOOKUP(Text!$F$130,#REF!,$K47,FALSE) ->  | K47: 23
A48: 45 | B48: 82 | C48: =IF('iaith - language'!$K$1=2,VLOOKUP(A48,Text!$A$3:$C$402,2,0),VLOOKUP(A48,Text!$A$3:$C$402,3,0)) -> DATA AMCANGYFRIFON POBLOGAETH | D48: =IF('iaith - language'!$K$1=2,VLOOKUP(B48,Text!$A$3:$C$402,2,0),VLOOKUP(B48,Text!$A$3:$C$402,3,0)) -> Amcangyfrifon Poblogaeth Ganol Blwyddyn, pob oed | E48: =VLOOKUP(0,#REF!,K48,FALSE) ->  | F48: =VLOOKUP(Text!$F$130,#REF!,$K48,FALSE) ->  | G48: =IF('iaith - language'!K1=2,VLOOKUP(A29,Text!A3:C316,2),VLOOKUP(A29,Text!A3:C318,3)) -> Llywodraeth Cymru | K48: 24
B49: 83 | D49: =IF('iaith - language'!$K$1=2,VLOOKUP(B49,Text!$A$3:$C$402,2,0),VLOOKUP(B49,Text!$A$3:$C$402,3,0)) -> Amcangyfrifon Poblogaeth Ganol Blwyddyn, 18 oed a throsodd | E49: =VLOOKUP(0,#REF!,K49,FALSE) ->  | F49: =VLOOKUP(Text!$F$130,#REF!,$K49,FALSE) ->  | K49: 25
B50: 84 | D50: =IF('iaith - language'!$K$1=2,VLOOKUP(B50,Text!$A$3:$C$402,2,0),VLOOKUP(B50,Text!$A$3:$C$402,3,0)) -> Amcangyfrifon Poblogaeth Ganol Blwyddyn, 65 oed a throsodd | E50: =VLOOKUP(0,#REF!,K50,FALSE) ->  | F50: =VLOOKUP(Text!$F$130,#REF!,$K50,FALSE) ->  | K50: 26
A51: 46 | B51: 85 | C51: =IF('iaith - language'!$K$1=2,VLOOKUP(A51,Text!$A$3:$C$402,2,0),VLOOKUP(A51,Text!$A$3:$C$402,3,0)) -> DATA TAI - CYLLID CYFALAF CYFFREDINOL | D51: =IF('iaith - language'!$K$1=2,VLOOKUP(B51,Text!$A$3:$C$402,2,0),VLOOKUP(B51,Text!$A$3:$C$402,3,0)) -> Swm a wariwyd ar grantiau cyfleusterau i'r anabl wedi'u cwblhau (£s) | E51: =VLOOKUP(0,#REF!,K51,FALSE) ->  | F51: =VLOOKUP(Text!$F$130,#REF!,$K51,FALSE) ->  | G51: =IF('iaith - language'!$K$1=2,VLOOKUP(J51,Text!$A$4:$C$198,2,FALSE),VLOOKUP(J51,Text!$A$4:$C$198,3,FALSE)) -> Llywodraeth Cymru | I51: Do not verify | J51: 29 | K51: 27
A52: 47 | B52: 87 | C52: =IF('iaith - language'!$K$1=2,VLOOKUP(A52,Text!$A$3:$C$402,2,0),VLOOKUP(A52,Text!$A$3:$C$402,3,0)) -> PRAESEPTAU DRAENIO TIR | D52: =IF('iaith - language'!$K$1=2,VLOOKUP(B52,Text!$A$3:$C$402,2,0),VLOOKUP(B52,Text!$A$3:$C$402,3,0)) -> Ardollau arbennig gan Fyrddau Draenio Mewnol | E52: ='2025-26 Settlement data'!AC7 -> 2024-25 | F52: =VLOOKUP(Text!$F$130,'2025-26 Settlement data'!$B$9:$DG$30,$K52,FALSE) ->  | G52: =IF('iaith - language'!$K$1=2,VLOOKUP(J52,Text!$A$4:$C$198,2,FALSE),VLOOKUP(J52,Text!$A$4:$C$198,3,FALSE)) -> Llywodraeth Cymru | J52: 29 | K52: 28
A53: 48 | B53: 88 | C53: =IF('iaith - language'!$K$1=2,VLOOKUP(A53,Text!$A$3:$C$402,2,0),VLOOKUP(A53,Text!$A$3:$C$402,3,0)) -> HYD YR ARFORDIR A WARCHODIR | D53: =IF('iaith - language'!$K$1=2,VLOOKUP(B53,Text!$A$3:$C$402,2,0),VLOOKUP(B53,Text!$A$3:$C$402,3,0)) -> Hyd (km) | E53: =VLOOKUP(0,#REF!,K53,FALSE) ->  | F53: =VLOOKUP(Text!$F$130,#REF!,$K53,FALSE) ->  | G53: =IF('iaith - language'!$K$1=2,VLOOKUP(J53,Text!$A$4:$C$198,2,FALSE),VLOOKUP(J53,Text!$A$4:$C$198,3,FALSE)) -> Llywodraeth Cymru | J53: 29 | K53: 29
A54: 49 | B54: 89 | C54: =IF('iaith - language'!$K$1=2,VLOOKUP(A54,Text!$A$3:$C$402,2,0),VLOOKUP(A54,Text!$A$3:$C$402,3,0)) -> FFERMYDD | D54: =IF('iaith - language'!$K$1=2,VLOOKUP(B54,Text!$A$3:$C$402,2,0),VLOOKUP(B54,Text!$A$3:$C$402,3,0)) -> Nifer y ffermydd economaidd weithgar | E54: =VLOOKUP(0,#REF!,K54,FALSE) ->  | F54: =VLOOKUP(Text!$F$130,#REF!,$K54,FALSE) ->  | G54: =IF('iaith - language'!$K$1=2,VLOOKUP(J54,Text!$A$4:$C$198,2,FALSE),VLOOKUP(J54,Text!$A$4:$C$198,3,FALSE)) -> Llywodraeth Cymru | J54: 29 | K54: 30
A55: 144 | B55: 145 | C55: =IF('iaith - language'!$K$1=2,VLOOKUP(A55,Text!$A$3:$C$402,2,0),VLOOKUP(A55,Text!$A$3:$C$402,3,0)) -> EIDDO MASNACHU | D55: =IF('iaith - language'!$K$1=2,VLOOKUP(B55,Text!$A$3:$C$402,2,0),VLOOKUP(B55,Text!$A$3:$C$402,3,0)) -> Nifer yr Eiddo Masnachu | E55: ='2025-26 Settlement data'!AF7 -> 2024-03-01 | F55: =VLOOKUP(Text!$F$130,'2025-26 Settlement data'!$B$9:$DG$30,$K55,FALSE) ->  | G55: =IF('iaith - language'!$K$1=2,VLOOKUP(J56,Text!$A$4:$C$198,2,FALSE),VLOOKUP(J56,Text!$A$4:$C$198,3,FALSE)) -> Asiantaeth y Swyddfa Brisio | J55: 115 | K55: 31
A56: 146 | B56: 147 | C56: =IF('iaith - language'!$K$1=2,VLOOKUP(A56,Text!$A$3:$C$402,2,0),VLOOKUP(A56,Text!$A$3:$C$402,3,0)) -> EIDDO BWYD | D56: =IF('iaith - language'!$K$1=2,VLOOKUP(B56,Text!$A$3:$C$402,2,0),VLOOKUP(B56,Text!$A$3:$C$402,3,0)) -> Nifer yr Eiddo Bwyd | E56: ='2025-26 Settlement data'!AG7 -> 2024-03-01 | F56: =VLOOKUP(Text!$F$130,'2025-26 Settlement data'!$B$9:$DG$30,$K56,FALSE) ->  | G56: =IF('iaith - language'!$K$1=2,VLOOKUP(J56,Text!$A$4:$C$198,2,FALSE),VLOOKUP(J56,Text!$A$4:$C$198,3,FALSE)) -> Asiantaeth y Swyddfa Brisio | J56: 153 | K56: 32
A57: 154 | B57: 143 | C57: =IF('iaith - language'!$K$1=2,VLOOKUP(A57,Text!$A$3:$C$402,2,0),VLOOKUP(A57,Text!$A$3:$C$402,3,0)) -> UNEDAU GOLEUADAU STRYD | D57: =IF('iaith - language'!$K$1=2,VLOOKUP(B57,Text!$A$3:$C$402,2,0),VLOOKUP(B57,Text!$A$3:$C$402,3,0)) -> Cyfanswm yr unedau goleuadau stryd | E57: ='2025-26 Settlement data'!AH7 -> 2024-04-01 | F57: =VLOOKUP(Text!$F$130,'2025-26 Settlement data'!$B$9:$DG$30,$K57,FALSE) ->  | G57: =IF('iaith - language'!$K$1=2,VLOOKUP(J57,Text!$A$4:$C$198,2,FALSE),VLOOKUP(J57,Text!$A$4:$C$198,3,FALSE)) -> Llywodraeth Cymru | J57: 29 | K57: 33
A58: 148 | B58: 149 | C58: =IF('iaith - language'!$K$1=2,VLOOKUP(A58,Text!$A$3:$C$402,2,0),VLOOKUP(A58,Text!$A$3:$C$402,3,0)) -> DATA MARWOLAETHAU | D58: =IF('iaith - language'!$K$1=2,VLOOKUP(B58,Text!$A$3:$C$402,2,0),VLOOKUP(B58,Text!$A$3:$C$402,3,0)) -> Nifer y marwolaethau wedi'u cofrestru | E58: ='2025-26 Settlement data'!AI7 -> 2023 | F58: =VLOOKUP(Text!$F$130,'2025-26 Settlement data'!$B$9:$DG$30,$K58,FALSE) ->  | G58: =IF('iaith - language'!$K$1=2,VLOOKUP(J58,Text!$A$4:$C$198,2,FALSE),VLOOKUP(J58,Text!$A$4:$C$198,3,FALSE)) -> Y Swyddfa Ystadegau Gwladol | J58: 158 | K58: 34
A59: 150 | B59: 151 | C59: =IF('iaith - language'!$K$1=2,VLOOKUP(A59,Text!$A$3:$C$402,2,0),VLOOKUP(A59,Text!$A$3:$C$402,3,0)) -> DATA CYNLLUNIAU GOSTYNGIADAU'R DRETH GYNGOR | D59: =IF('iaith - language'!$K$1=2,VLOOKUP(B59,Text!$A$3:$C$402,2,0),VLOOKUP(B59,Text!$A$3:$C$402,3,0)) -> Llwyth achosion Cynlluniau Gostyngiadau'r Dreth Gyngor | E59: ='2025-26 Settlement data'!AJ7 -> 2023-24 | F59: =VLOOKUP(Text!$F$130,'2025-26 Settlement data'!$B$9:$DG$30,$K59,FALSE) ->  | G59: =IF('iaith - language'!$K$1=2,VLOOKUP(J59,Text!$A$4:$C$198,2,FALSE),VLOOKUP(J59,Text!$A$4:$C$198,3,FALSE)) -> Llywodraeth Cymru | J59: 29 | K59: 35
B60: 152 | D60: =IF('iaith - language'!$K$1=2,VLOOKUP(B60,Text!$A$3:$C$402,2,0),VLOOKUP(B60,Text!$A$3:$C$402,3,0)) -> Gwariant Cynlluniau Gostyngiadau'r Dreth Gyngor | E60: ='2025-26 Settlement data'!AK7 -> 2023-24 | F60: =VLOOKUP(Text!$F$130,'2025-26 Settlement data'!$B$9:$DG$30,$K60,FALSE) ->  | K60: 36
B61: 152.5 | D61: =IF('iaith - language'!$K$1=2,VLOOKUP(B61,Text!$A$3:$C$402,2,0),VLOOKUP(B61,Text!$A$3:$C$402,3,0)) -> Cefnogaeth CTRS Covid-19 | E61: =VLOOKUP(0,#REF!,K61,FALSE) ->  | F61: =VLOOKUP(Text!$F$130,#REF!,$K61,FALSE) ->  | K61: 37
A62: 159 | B62: 160 | C62: =IF('iaith - language'!$K$1=2,VLOOKUP(A62,Text!$A$3:$C$402,2,0),VLOOKUP(A62,Text!$A$3:$C$402,3,0)) -> LLONGAU SY'N CYRRAEDD PORTHLADDOEDD | D62: =IF('iaith - language'!$K$1=2,VLOOKUP(B62,Text!$A$3:$C$402,2,0),VLOOKUP(B62,Text!$A$3:$C$402,3,0)) -> Nifer y llongau sy'n cyrraedd porthladdoedd | E62: ='2025-26 Settlement data'!AM7 -> 2023 | F62: =VLOOKUP(Text!$F$130,'2025-26 Settlement data'!$B$9:$DG$30,$K62,FALSE) ->  | G62: =IF('iaith - language'!$K$1=2,VLOOKUP(J62,Text!$A$4:$C$558,2,FALSE),VLOOKUP(J62,Text!$A$4:$C$558,3,FALSE)) -> Ystadegau morol a llongau, Yr Adran Drafnidiaeth | J62: 272 | K62: 38
A63: 161 | B63: 162 | C63: =IF('iaith - language'!$K$1=2,VLOOKUP(A63,Text!$A$3:$C$402,2,0),VLOOKUP(A63,Text!$A$3:$C$402,3,0)) -> DATA TWRISTIAETH | D63: =IF('iaith - language'!$K$1=2,VLOOKUP(B63,Text!$A$3:$C$402,2,0),VLOOKUP(B63,Text!$A$3:$C$402,3,0)) -> Nosweithiau twristiaid (miloedd) gan gynnwys AirBnb | E63: =VLOOKUP(0,#REF!,K63,FALSE) ->  | F63: =VLOOKUP(Text!$F$130,'2025-26 Settlement data'!$B$9:$DG$30,$K63,FALSE) ->  | G63: =IF('iaith - language'!$K$1=2,VLOOKUP(J63,Text!$A$4:$C$198,2,FALSE),VLOOKUP(J63,Text!$A$4:$C$198,3,FALSE)) -> Scarborough Tourism Economic Activity Monitor (STEAM) | J63: 164 | K63: 39
B64: 163 | D64: =IF('iaith - language'!$K$1=2,VLOOKUP(B64,Text!$A$3:$C$402,2,0),VLOOKUP(B64,Text!$A$3:$C$402,3,0)) -> Diwrnodau twristiaid (miloedd) | E64: =VLOOKUP(0,#REF!,K64,FALSE) ->  | F64: =VLOOKUP(Text!$F$130,'2025-26 Settlement data'!$B$9:$DG$30,$K64,FALSE) ->  | K64: 40
A65: 165 | B65: 166 | C65: =IF('iaith - language'!$K$1=2,VLOOKUP(A65,Text!$A$3:$C$402,2,0),VLOOKUP(A65,Text!$A$3:$C$402,3,0)) -> DATA AR GANRAN YR HAWLWYR BUDD-DAL DIWEITHDRA | D65: =IF('iaith - language'!$K$1=2,VLOOKUP(B65,Text!$A$3:$C$402,2,0),VLOOKUP(B65,Text!$A$3:$C$402,3,0)) -> Nifer yr hawlwyr | E65: ='2025-26 Settlement data'!AP7 -> 2023-10-01 | F65: =VLOOKUP(Text!$F$130,'2025-26 Settlement data'!$B$9:$DG$30,$K65,FALSE) ->  | G65: =IF('iaith - language'!$K$1=2,VLOOKUP(B66,Text!$A$4:$C$198,2,FALSE),VLOOKUP(B66,Text!$A$4:$C$198,3,FALSE)) -> NOMIS ystadegau swyddogol y farchnad lafur | J65: 167 | K65: 41
B66: 209 | E66: ='2025-26 Settlement data'!AQ7 -> 2023-11-01 | F66: =VLOOKUP(Text!$F$130,'2025-26 Settlement data'!$B$9:$DG$30,$K66,FALSE) ->  | J66: =J65+1 -> 168 | K66: 42
E67: ='2025-26 Settlement data'!AR7 -> 2023-12-01 | F67: =VLOOKUP(Text!$F$130,'2025-26 Settlement data'!$B$9:$DG$30,$K67,FALSE) ->  | J67: 169 | K67: 43
E68: ='2025-26 Settlement data'!AS7 -> 2024-01-01 | F68: =VLOOKUP(Text!$F$130,'2025-26 Settlement data'!$B$9:$DG$30,$K68,FALSE) ->  | J68: 170 | K68: 44
E69: ='2025-26 Settlement data'!AT7 -> 2024-02-01 | F69: =VLOOKUP(Text!$F$130,'2025-26 Settlement data'!$B$9:$DG$30,$K69,FALSE) ->  | J69: 171 | K69: 45
E70: ='2025-26 Settlement data'!AU7 -> 2024-03-01 | F70: =VLOOKUP(Text!$F$130,'2025-26 Settlement data'!$B$9:$DG$30,$K70,FALSE) ->  | J70: 172 | K70: 46
E71: ='2025-26 Settlement data'!AV7 -> 2024-04-01 | F71: =VLOOKUP(Text!$F$130,'2025-26 Settlement data'!$B$9:$DG$30,$K71,FALSE) ->  | J71: 173 | K71: 47
E72: ='2025-26 Settlement data'!AW7 -> 2024-05-01 | F72: =VLOOKUP(Text!$F$130,'2025-26 Settlement data'!$B$9:$DG$30,$K72,FALSE) ->  | J72: 174 | K72: 48
E73: ='2025-26 Settlement data'!AX7 -> 2024-06-01 | F73: =VLOOKUP(Text!$F$130,'2025-26 Settlement data'!$B$9:$DG$30,$K73,FALSE) ->  | J73: 175 | K73: 49
E74: ='2025-26 Settlement data'!AY7 -> 2024-07-01 | F74: =VLOOKUP(Text!$F$130,'2025-26 Settlement data'!$B$9:$DG$30,$K74,FALSE) ->  | J74: 176 | K74: 50
E75: ='2025-26 Settlement data'!AZ7 -> 2024-08-01 | F75: =VLOOKUP(Text!$F$130,'2025-26 Settlement data'!$B$9:$DG$30,$K75,FALSE) ->  | J75: 177 | K75: 51
A76: 179 | B76: 194 | C76: =IF('iaith - language'!$K$1=2,VLOOKUP(A76,Text!$A$3:$C$402,2,0),VLOOKUP(A76,Text!$A$3:$C$402,3,0)) -> DATA AR HAWLWYR BUDD-DALIADAU | D76: =IF('iaith - language'!$K$1=2,VLOOKUP(B76,Text!$A$3:$C$402,2,0),VLOOKUP(B76,Text!$A$3:$C$402,3,0)) -> Nifer yr Hawlwyr Cymhorthdal Incwm, 18-64 oed | E76: ='2025-26 Settlement data'!BA7 -> 2023-05-01 | F76: =VLOOKUP(Text!$F$130,'2025-26 Settlement data'!$B$9:$DG$30,$K76,FALSE) ->  | G76: =IF('iaith - language'!$K$1=2,VLOOKUP(B77,Text!$A$4:$C$198,2,FALSE),VLOOKUP(B77,Text!$A$4:$C$198,3,FALSE)) -> Yr Adran Gwaith a Phensiynau (DWP) | J76: 114 | K76: 52
B77: 208 | E77: ='2025-26 Settlement data'!BB7 -> 2023-08-01 | F77: =VLOOKUP(Text!$F$130,'2025-26 Settlement data'!$B$9:$DG$30,$K77,FALSE) ->  | J77: 182 | K77: 53
E78: ='2025-26 Settlement data'!BC7 -> 2023-11-01 | F78: =VLOOKUP(Text!$F$130,'2025-26 Settlement data'!$B$9:$DG$30,$K78,FALSE) ->  | J78: 185 | K78: 54
E79: ='2025-26 Settlement data'!BD7 -> 2024-02-01 | F79: =VLOOKUP(Text!$F$130,'2025-26 Settlement data'!$B$9:$DG$30,$K79,FALSE) ->  | J79: 188 | K79: 55
B80: 195 | D80: =IF('iaith - language'!$K$1=2,VLOOKUP(B80,Text!$A$3:$C$402,2,0),VLOOKUP(B80,Text!$A$3:$C$402,3,0)) -> Nifer y Derbynwyr Lwfans Ceisio Swydd ar Sail Incwm, 18-64 oed | E80: ='2025-26 Settlement data'!BE7 -> 2023-05-01 | F80: =VLOOKUP(Text!$F$130,'2025-26 Settlement data'!$B$9:$DG$30,$K80,FALSE) ->  | G80: =IF('iaith - language'!$K$1=2,VLOOKUP(B81,Text!$A$4:$C$198,2,FALSE),VLOOKUP(B81,Text!$A$4:$C$198,3,FALSE)) -> NOMIS ystadegau swyddogol y farchnad lafur | J80: 114 | K80: 56
B81: 209 | E81: ='2025-26 Settlement data'!BF7 -> 2023-08-01 | F81: =VLOOKUP(Text!$F$130,'2025-26 Settlement data'!$B$9:$DG$30,$K81,FALSE) ->  | J81: 182 | K81: 57
E82: ='2025-26 Settlement data'!BG7 -> 2023-11-01 | F82: =VLOOKUP(Text!$F$130,'2025-26 Settlement data'!$B$9:$DG$30,$K82,FALSE) ->  | J82: 185 | K82: 58
E83: ='2025-26 Settlement data'!BH7 -> 2024-02-01 | F83: =VLOOKUP(Text!$F$130,'2025-26 Settlement data'!$B$9:$DG$30,$K83,FALSE) ->  | J83: 188 | K83: 59
B84: 196 | D84: =IF('iaith - language'!$K$1=2,VLOOKUP(B84,Text!$A$3:$C$402,2,0),VLOOKUP(B84,Text!$A$3:$C$402,3,0)) -> Nifer yr hawlwyr Credyd Pensiwn, 18-64 oed | E84: ='2025-26 Settlement data'!BI7 -> 2023-05-01 | F84: =VLOOKUP(Text!$F$130,'2025-26 Settlement data'!$B$9:$DG$30,$K84,FALSE) ->  | G84: =IF('iaith - language'!$K$1=2,VLOOKUP(B85,Text!$A$4:$C$198,2,FALSE),VLOOKUP(B85,Text!$A$4:$C$198,3,FALSE)) -> Yr Adran Gwaith a Phensiynau (DWP) | J84: 114 | K84: 60
B85: 208 | E85: ='2025-26 Settlement data'!BJ7 -> 2023-08-01 | F85: =VLOOKUP(Text!$F$130,'2025-26 Settlement data'!$B$9:$DG$30,$K85,FALSE) ->  | J85: 182 | K85: 61
E86: ='2025-26 Settlement data'!BK7 -> 2023-11-01 | F86: =VLOOKUP(Text!$F$130,'2025-26 Settlement data'!$B$9:$DG$30,$K86,FALSE) ->  | J86: 185 | K86: 62
E87: ='2025-26 Settlement data'!BL7 -> 2024-02-01 | F87: =VLOOKUP(Text!$F$130,'2025-26 Settlement data'!$B$9:$DG$30,$K87,FALSE) ->  | J87: 188 | K87: 63
B88: 197 | D88: =IF('iaith - language'!$K$1=2,VLOOKUP(B88,Text!$A$3:$C$402,2,0),VLOOKUP(B88,Text!$A$3:$C$402,3,0)) -> Nifer y rhai sydd yn derbyn Credyd Cynhwysol (ddim mewn cyflogaeth) 18-64 oed | E88: ='2025-26 Settlement data'!BM7 -> 2023-05-01 | F88: =VLOOKUP(Text!$F$130,'2025-26 Settlement data'!$B$9:$DG$30,$K88,FALSE) ->  | G88: =IF('iaith - language'!$K$1=2,VLOOKUP(B89,Text!$A$4:$C$198,2,FALSE),VLOOKUP(B89,Text!$A$4:$C$198,3,FALSE)) -> Yr Adran Gwaith a Phensiynau (DWP) | J88: 114 | K88: 64
B89: 208 | E89: ='2025-26 Settlement data'!BN7 -> 2023-08-01 | F89: =VLOOKUP(Text!$F$130,'2025-26 Settlement data'!$B$9:$DG$30,$K89,FALSE) ->  | J89: 182 | K89: 65
E90: ='2025-26 Settlement data'!BO7 -> 2023-11-01 | F90: =VLOOKUP(Text!$F$130,'2025-26 Settlement data'!$B$9:$DG$30,$K90,FALSE) ->  | J90: 185 | K90: 66
E91: ='2025-26 Settlement data'!BP7 -> 2024-02-01 | F91: =VLOOKUP(Text!$F$130,'2025-26 Settlement data'!$B$9:$DG$30,$K91,FALSE) ->  | J91: 188 | K91: 67
B92: 198 | D92: =IF('iaith - language'!$K$1=2,VLOOKUP(B92,Text!$A$3:$C$402,2,0),VLOOKUP(B92,Text!$A$3:$C$402,3,0)) -> Cyfanswm yr Hawlwyr Cymhorthdal Incwm | E92: ='2025-26 Settlement data'!BQ7 -> 2023-05-01 | F92: =VLOOKUP(Text!$F$130,'2025-26 Settlement data'!$B$9:$DG$30,$K92,FALSE) ->  | G92: =IF('iaith - language'!$K$1=2,VLOOKUP(B93,Text!$A$4:$C$198,2,FALSE),VLOOKUP(B93,Text!$A$4:$C$198,3,FALSE)) -> Yr Adran Gwaith a Phensiynau (DWP) | J92: 114 | K92: 68
B93: 208 | E93: ='2025-26 Settlement data'!BR7 -> 2023-08-01 | F93: =VLOOKUP(Text!$F$130,'2025-26 Settlement data'!$B$9:$DG$30,$K93,FALSE) ->  | J93: 182 | K93: 69
E94: ='2025-26 Settlement data'!BS7 -> 2023-11-01 | F94: =VLOOKUP(Text!$F$130,'2025-26 Settlement data'!$B$9:$DG$30,$K94,FALSE) ->  | J94: 185 | K94: 70
E95: ='2025-26 Settlement data'!BT7 -> 2024-02-01 | F95: =VLOOKUP(Text!$F$130,'2025-26 Settlement data'!$B$9:$DG$30,$K95,FALSE) ->  | J95: 188 | K95: 71
B96: 199 | D96: =IF('iaith - language'!$K$1=2,VLOOKUP(B96,Text!$A$3:$C$402,2,0),VLOOKUP(B96,Text!$A$3:$C$402,3,0)) -> Cyfanswm y Derbynwyr Lwfans Ceisio Swydd ar Sail Incwm | E96: ='2025-26 Settlement data'!BU7 -> 2023-05-01 | F96: =VLOOKUP(Text!$F$130,'2025-26 Settlement data'!$B$9:$DG$30,$K96,FALSE) ->  | G96: =IF('iaith - language'!$K$1=2,VLOOKUP(B97,Text!$A$4:$C$198,2,FALSE),VLOOKUP(B97,Text!$A$4:$C$198,3,FALSE)) -> NOMIS ystadegau swyddogol y farchnad lafur | J96: 114 | K96: =K95+1 -> 72
B97: 209 | E97: ='2025-26 Settlement data'!BV7 -> 2023-08-01 | F97: =VLOOKUP(Text!$F$130,'2025-26 Settlement data'!$B$9:$DG$30,$K97,FALSE) ->  | J97: 182 | K97: 73
E98: ='2025-26 Settlement data'!BW7 -> 2023-11-01 | F98: =VLOOKUP(Text!$F$130,'2025-26 Settlement data'!$B$9:$DG$30,$K98,FALSE) ->  | J98: 185 | K98: 74
E99: ='2025-26 Settlement data'!BX7 -> 2024-02-01 | F99: =VLOOKUP(Text!$F$130,'2025-26 Settlement data'!$B$9:$DG$30,$K99,FALSE) ->  | J99: 188 | K99: 75
B100: 200 | D100: =IF('iaith - language'!$K$1=2,VLOOKUP(B100,Text!$A$3:$C$402,2,0),VLOOKUP(B100,Text!$A$3:$C$402,3,0)) -> Cyfanswm Hawlwyr Credyd Pensiwn | E100: ='2025-26 Settlement data'!BY7 -> 2023-05-01 | F100: =VLOOKUP(Text!$F$130,'2025-26 Settlement data'!$B$9:$DG$30,$K100,FALSE) ->  | G100: =IF('iaith - language'!$K$1=2,VLOOKUP(B101,Text!$A$4:$C$198,2,FALSE),VLOOKUP(B101,Text!$A$4:$C$198,3,FALSE)) -> Yr Adran Gwaith a Phensiynau (DWP) | J100: 114 | K100: 76
B101: 208 | E101: ='2025-26 Settlement data'!BZ7 -> 2023-08-01 | F101: =VLOOKUP(Text!$F$130,'2025-26 Settlement data'!$B$9:$DG$30,$K101,FALSE) ->  | J101: 182 | K101: 77
E102: ='2025-26 Settlement data'!CA7 -> 2023-11-01 | F102: =VLOOKUP(Text!$F$130,'2025-26 Settlement data'!$B$9:$DG$30,$K102,FALSE) ->  | J102: 185 | K102: 78
E103: ='2025-26 Settlement data'!CB7 -> 2024-02-01 | F103: =VLOOKUP(Text!$F$130,'2025-26 Settlement data'!$B$9:$DG$30,$K103,FALSE) ->  | J103: 188 | K103: 79
B104: 201 | D104: =IF('iaith - language'!$K$1=2,VLOOKUP(B104,Text!$A$3:$C$402,2,0),VLOOKUP(B104,Text!$A$3:$C$402,3,0)) -> Cyfanswm y rhai sy’n derbyn Credyd Cynhwysol (ddim mewn cyflogaeth) | E104: ='2025-26 Settlement data'!CC7 -> 2023-05-01 | F104: =VLOOKUP(Text!$F$130,'2025-26 Settlement data'!$B$9:$DG$30,$K104,FALSE) ->  | G104: =IF('iaith - language'!$K$1=2,VLOOKUP(B105,Text!$A$4:$C$198,2,FALSE),VLOOKUP(B105,Text!$A$4:$C$198,3,FALSE)) -> Yr Adran Gwaith a Phensiynau (DWP) | J104: 114 | K104: 80
B105: 208 | E105: ='2025-26 Settlement data'!CD7 -> 2023-08-01 | F105: =VLOOKUP(Text!$F$130,'2025-26 Settlement data'!$B$9:$DG$30,$K105,FALSE) ->  | J105: 182 | K105: 81
E106: ='2025-26 Settlement data'!CE7 -> 2023-11-01 | F106: =VLOOKUP(Text!$F$130,'2025-26 Settlement data'!$B$9:$DG$30,$K106,FALSE) ->  | J106: 185 | K106: 82
E107: ='2025-26 Settlement data'!CF7 -> 2024-02-01 | F107: =VLOOKUP(Text!$F$130,'2025-26 Settlement data'!$B$9:$DG$30,$K107,FALSE) ->  | J107: 188 | K107: 83
B108: 202 | D108: =IF('iaith - language'!$K$1=2,VLOOKUP(B108,Text!$A$3:$C$402,2,0),VLOOKUP(B108,Text!$A$3:$C$402,3,0)) -> Nifer yr Hawlwyr Lwfans Anabledd Difrifol, 18-64 oed | E108: ='2025-26 Settlement data'!CG7 -> 2023-05-01 | F108: =VLOOKUP(Text!$F$130,'2025-26 Settlement data'!$B$9:$DG$30,$K108,FALSE) ->  | G108: =IF('iaith - language'!$K$1=2,VLOOKUP(B109,Text!$A$4:$C$198,2,FALSE),VLOOKUP(B109,Text!$A$4:$C$198,3,FALSE)) -> Yr Adran Gwaith a Phensiynau (DWP) | J108: 114 | K108: 84
B109: 208 | E109: ='2025-26 Settlement data'!CH7 -> 2023-08-01 | F109: =VLOOKUP(Text!$F$130,'2025-26 Settlement data'!$B$9:$DG$30,$K109,FALSE) ->  | J109: 182 | K109: 85
E110: ='2025-26 Settlement data'!CI7 -> 2023-11-01 | F110: =VLOOKUP(Text!$F$130,'2025-26 Settlement data'!$B$9:$DG$30,$K110,FALSE) ->  | J110: 185 | K110: 86
E111: ='2025-26 Settlement data'!CJ7 -> 2024-02-01 | F111: =VLOOKUP(Text!$F$130,'2025-26 Settlement data'!$B$9:$DG$30,$K111,FALSE) ->  | J111: 188 | K111: 87
B112: 203 | D112: =IF('iaith - language'!$K$1=2,VLOOKUP(B112,Text!$A$3:$C$402,2,0),VLOOKUP(B112,Text!$A$3:$C$402,3,0)) -> Nifer yr Hawlwyr Lwfans Byw i'r Anabl, 18-64 oed | E112: ='2025-26 Settlement data'!CK7 -> 2023-05-01 | F112: =VLOOKUP(Text!$F$130,'2025-26 Settlement data'!$B$9:$DG$30,$K112,FALSE) ->  | G112: =IF('iaith - language'!$K$1=2,VLOOKUP(B113,Text!$A$4:$C$198,2,FALSE),VLOOKUP(B113,Text!$A$4:$C$198,3,FALSE)) -> Yr Adran Gwaith a Phensiynau (DWP) | J112: 114 | K112: 88
B113: 208 | E113: ='2025-26 Settlement data'!CL7 -> 2023-08-01 | F113: =VLOOKUP(Text!$F$130,'2025-26 Settlement data'!$B$9:$DG$30,$K113,FALSE) ->  | J113: 182 | K113: 89
E114: ='2025-26 Settlement data'!CM7 -> 2023-11-01 | F114: =VLOOKUP(Text!$F$130,'2025-26 Settlement data'!$B$9:$DG$30,$K114,FALSE) ->  | J114: 185 | K114: 90
E115: ='2025-26 Settlement data'!CN7 -> 2024-02-01 | F115: =VLOOKUP(Text!$F$130,'2025-26 Settlement data'!$B$9:$DG$30,$K115,FALSE) ->  | J115: 188 | K115: 91
B116: 204 | D116: =IF('iaith - language'!$K$1=2,VLOOKUP(B116,Text!$A$3:$C$402,2,0),VLOOKUP(B116,Text!$A$3:$C$402,3,0)) -> Nifer yr Hawlwyr Taliad Annibyniaeth Bersonol sydd yn 18-64 oed | E116: ='2025-26 Settlement data'!CO7 -> 2023-05-01 | F116: =VLOOKUP(Text!$F$130,'2025-26 Settlement data'!$B$9:$DG$30,$K116,FALSE) ->  | G116: =IF('iaith - language'!$K$1=2,VLOOKUP(B117,Text!$A$4:$C$198,2,FALSE),VLOOKUP(B117,Text!$A$4:$C$198,3,FALSE)) -> Yr Adran Gwaith a Phensiynau (DWP) | J116: 114 | K116: 92
B117: 208 | E117: ='2025-26 Settlement data'!CP7 -> 2023-08-01 | F117: =VLOOKUP(Text!$F$130,'2025-26 Settlement data'!$B$9:$DG$30,$K117,FALSE) ->  | J117: 182 | K117: 93
E118: ='2025-26 Settlement data'!CQ7 -> 2023-11-01 | F118: =VLOOKUP(Text!$F$130,'2025-26 Settlement data'!$B$9:$DG$30,$K118,FALSE) ->  | J118: 185 | K118: 94
E119: ='2025-26 Settlement data'!CR7 -> 2024-02-01 | F119: =VLOOKUP(Text!$F$130,'2025-26 Settlement data'!$B$9:$DG$30,$K119,FALSE) ->  | J119: 188 | K119: 95
B120: 205 | D120: =IF('iaith - language'!$K$1=2,VLOOKUP(B120,Text!$A$3:$C$402,2,0),VLOOKUP(B120,Text!$A$3:$C$402,3,0)) -> Hawlwyr Credyd Pensiwn, 65 oed a hŷn | E120: ='2025-26 Settlement data'!CS7 -> 2023-05-01 | F120: =VLOOKUP(Text!$F$130,'2025-26 Settlement data'!$B$9:$DG$30,$K120,FALSE) ->  | G120: =IF('iaith - language'!$K$1=2,VLOOKUP(B121,Text!$A$4:$C$198,2,FALSE),VLOOKUP(B121,Text!$A$4:$C$198,3,FALSE)) -> Yr Adran Gwaith a Phensiynau (DWP) | J120: 114 | K120: 96
B121: 208 | E121: ='2025-26 Settlement data'!CT7 -> 2023-08-01 | F121: =VLOOKUP(Text!$F$130,'2025-26 Settlement data'!$B$9:$DG$30,$K121,FALSE) ->  | J121: 182 | K121: 97
E122: ='2025-26 Settlement data'!CU7 -> 2023-11-01 | F122: =VLOOKUP(Text!$F$130,'2025-26 Settlement data'!$B$9:$DG$30,$K122,FALSE) ->  | J122: 185 | K122: 98
E123: ='2025-26 Settlement data'!CV7 -> 2024-02-01 | F123: =VLOOKUP(Text!$F$130,'2025-26 Settlement data'!$B$9:$DG$30,$K123,FALSE) ->  | J123: 188 | K123: 99
B124: 206 | D124: =IF('iaith - language'!$K$1=2,VLOOKUP(B124,Text!$A$3:$C$402,2,0),VLOOKUP(B124,Text!$A$3:$C$402,3,0)) -> Cyfanswn yr hawlwyr Cymhorthdal Incwm, Lwfans Ceisio Gwaith, a Chredyd Pensiwn | E124: ='2025-26 Settlement data'!CW7 -> 2023-05-01 | F124: =VLOOKUP(Text!$F$130,'2025-26 Settlement data'!$B$9:$DG$30,$K124,FALSE) ->  | G124: =IF('iaith - language'!$K$1=2,VLOOKUP(B125,Text!$A$4:$C$198,2,FALSE),VLOOKUP(B125,Text!$A$4:$C$198,3,FALSE)) -> NOMIS ystadegau swyddogol y farchnad lafur a Yr Adran Gwaith a Phensiynau (DWP) | J124: 114 | K124: 100
B125: 210 | E125: ='2025-26 Settlement data'!CX7 -> 2023-08-01 | F125: =VLOOKUP(Text!$F$130,'2025-26 Settlement data'!$B$9:$DG$30,$K125,FALSE) ->  | J125: 182 | K125: 101
E126: ='2025-26 Settlement data'!CY7 -> 2023-11-01 | F126: =VLOOKUP(Text!$F$130,'2025-26 Settlement data'!$B$9:$DG$30,$K126,FALSE) ->  | J126: 185 | K126: 102
E127: ='2025-26 Settlement data'!CZ7 -> 2024-02-01 | F127: =VLOOKUP(Text!$F$130,'2025-26 Settlement data'!$B$9:$DG$30,$K127,FALSE) ->  | J127: 188 | K127: 103
A128: 271.5 | B128: 274 | C128: =IF('iaith - language'!$K$1=2,VLOOKUP(A128,Text!$A$3:$C$402,2,0),VLOOKUP(A128,Text!$A$3:$C$402,3,0)) -> Stoc eiddo treth cyngor | D128: =IF('iaith - language'!$K$1=2,VLOOKUP(A128,Text!$A$3:$C$402, 2, 0),VLOOKUP(A128,Text!$A$3:$C$402, 3,0)) -> Stoc eiddo treth cyngor | E128: ='2025-26 Settlement data'!DA7 -> 2024-03-01 | F128: =VLOOKUP(Text!$F$130,'2025-26 Settlement data'!$B$9:$DG$30,$K128,FALSE) ->  | G128: =IF('iaith - language'!$K$1=2,VLOOKUP(B128,Text!$A$4:$C$198,2,FALSE),VLOOKUP(B128,Text!$A$4:$C$198,3,FALSE)) -> Asiantaeth y Swyddfa Brisio | J128: 115 | K128: 104
A129: 40 | B129: 53 | C129: =IF('iaith - language'!$K$1=2,VLOOKUP(A129,Text!$A$3:$C$402,2,0),VLOOKUP(A129,Text!$A$3:$C$402,3,0)) -> DATA FFYRDD | D129: =IF('iaith - language'!$K$1=2,VLOOKUP(B129,Text!$A$3:$C$402,2,0),VLOOKUP(B129,Text!$A$3:$C$402,3,0)) -> Hyd ffyrdd A y sir (km) | E129: April 2023 | F129: =VLOOKUP(Text!$F$130,'2025-26 Settlement data'!$B$9:$DG$30,$K129,FALSE) ->  | G129: =IF('iaith - language'!$K$1=2,VLOOKUP(A130,Text!$A$4:$C$198,2,FALSE),VLOOKUP(A130,Text!$A$4:$C$198,3,FALSE)) -> Llywodraeth Cymru | K129: 105
A130: 29 | B130: 55 | D130: =IF('iaith - language'!$K$1=2,VLOOKUP(B130,Text!$A$3:$C$402,2,0),VLOOKUP(B130,Text!$A$3:$C$402,3,0)) -> Hyd ffyrdd B ac C (km) | F130: =VLOOKUP(Text!$F$130,'2025-26 Settlement data'!$B$9:$DG$30,$K130,FALSE) ->  | K130: 106
B131: 57 | D131: =IF('iaith - language'!$K$1=2,VLOOKUP(B131,Text!$A$3:$C$402,2,0),VLOOKUP(B131,Text!$A$3:$C$402,3,0)) -> Hyd is-ffyrdd â wyneb caled (km) | F131: =VLOOKUP(Text!$F$130,'2025-26 Settlement data'!$B$9:$DG$30,$K131,FALSE) ->  | K131: 107
B132: 54 | D132: =IF('iaith - language'!$K$1=2,VLOOKUP(B132,Text!$A$3:$C$402,2,0),VLOOKUP(B132,Text!$A$3:$C$402,3,0)) -> Hyd ffyrdd A y sir, adeiledig (km) | F132: =VLOOKUP(Text!$F$130,'2025-26 Settlement data'!$B$9:$DG$30,$K132,FALSE) ->  | K132: 108
B133: 56 | D133: =IF('iaith - language'!$K$1=2,VLOOKUP(B133,Text!$A$3:$C$402,2,0),VLOOKUP(B133,Text!$A$3:$C$402,3,0)) -> Hyd ffyrdd B ac C, adeiledig (km) | F133: =VLOOKUP(Text!$F$130,'2025-26 Settlement data'!$B$9:$DG$30,$K133,FALSE) ->  | K133: 109
B134: 58 | D134: =IF('iaith - language'!$K$1=2,VLOOKUP(B134,Text!$A$3:$C$402,2,0),VLOOKUP(B134,Text!$A$3:$C$402,3,0)) -> Hyd is-ffyrdd â wyneb caled, adeiledig (km) | F134: =VLOOKUP(Text!$F$130,'2025-26 Settlement data'!$B$9:$DG$30,$K134,FALSE) ->  | K134: 110
A136: 27 | C136: =IF('iaith - language'!$K$1=2,VLOOKUP(A136,Text!$A$3:$C$339,2,0),VLOOKUP(A136,Text!$A$3:$C$339,3,0)) -> Yr Is-adran Polisi Cyllid Llywodraeth Leol a Chynaliadwyedd, Llywodraeth Cymru
A138: 28 | B138: 271 | C138: =IF('iaith - language'!$K$1=2,VLOOKUP(A138,Text!$A$3:$C$339,2,0),VLOOKUP(A138,Text!$A$3:$C$339,3,0)) -> I'w ddychwelyd drwy e-bost i: | D138: LGFPSettlement@gov.wales

Sheet 2025-26 Settlement data
B1: 600 | C1: =IF('iaith - language'!$K$1=2,VLOOKUP(B1,Text!$A$1:$C$353,2,FALSE),VLOOKUP(B1,Text!$A$1:$C$353,3,FALSE)) -> Proses wirio data Cylch 1 - data i'w defnyddio ar gyfer Setliad 2025-26
D3: 51 | H3: 61 | I3: 62 | J3: 67 | K3: 68 | L3: 69 | M3: 70 | N3: 71 | O3: 72 | P3: 73 | Q3: 74 | R3: 75 | S3: 76 | T3: 77 | U3: 78 | V3: 79 | W3: 80 | X3: 81 | Y3: 82 | Z3: 83 | AA3: 84 | AB3: 86 | AC3: 90 | AD3: 91 | AE3: 92 | AF3: 145 | AG3: 147 | AH3: 143 | AI3: 149 | AJ3: 151 | AK3: 152 | AL3: 152.5 | AM3: 160 | AN3: 162 | AO3: 163 | AP3: 192 | BA3: 194 | BE3: 195 | BI3: 196 | BM3: 197 | BQ3: 198 | BU3: 199 | BY3: 200 | CC3: 201 | CG3: 202 | CK3: 203 | CO3: 204 | CS3: 205 | CW3: 206 | DA3: 271.5 | DB3: 53 | DC3: 55 | DD3: 57 | DE3: 54 | DF3: 56 | DG3: 58
D4: 601 | E4: =D4+1 -> 602 | F4: =E4+1 -> 603 | G4: =F4+1 -> 604 | H4: =G4+1 -> 605 | I4: 605 | AD4: 605 | AF4: 604 | AG4: 604 | AH4: 606 | AP4: 607 | AQ4: =AP4+1 -> 608 | AR4: =AQ4+1 -> 609 | AS4: =AR4+1 -> 610 | AT4: =AS4+1 -> 611 | AU4: 604 | AV4: 606 | AW4: 605 | AX4: 612 | AY4: =AX4+1 -> 613 | AZ4: =AY4+1 -> 614 | BA4: 615 | BB4: 616 | BC4: 608 | BD4: 611 | BE4: =BA4 -> 615 | BF4: 616 | BG4: 608 | BH4: 611 | BI4: 615 | BJ4: 616 | BK4: 608 | BL4: 611 | BM4: 615 | BN4: 616 | BO4: 608 | BP4: 611 | BQ4: 615 | BR4: 616 | BS4: 608 | BT4: 611 | BU4: 615 | BV4: 616 | BW4: 608 | BX4: 611 | BY4: 615 | BZ4: 616 | CA4: 608 | CB4: 611 | CC4: 615 | CD4: 616 | CE4: 608 | CF4: 611 | CG4: 615 | CH4: 616 | CI4: 608 | CJ4: 611 | CK4: 615 | CL4: 616 | CM4: 608 | CN4: 611 | CO4: 615 | CP4: 616 | CQ4: 608 | CR4: 611 | CS4: 615 | CT4: 616 | CU4: 608 | CV4: 611 | CW4: 615 | CX4: 616 | CY4: 608 | CZ4: 611 | DA4: =G4 -> 604 | DB4: 604 | DC4: 604 | DD4: 604 | DE4: 604 | DF4: 604 | DG4: 604
D6: =IF('iaith - language'!$K$1=2,VLOOKUP(D3,Text!$A$3:$C$353,2,FALSE),VLOOKUP(D3,Text!$A$3:$C$353,3,FALSE)) -> Ceisiadau Cynllunio a Gafwyd | H6: =IF('iaith - language'!$K$1=2,VLOOKUP(H3,Text!$A$3:$C$353,2,FALSE),VLOOKUP(H3,Text!$A$3:$C$353,3,FALSE)) -> Stoc anheddau'r sector preifat | I6: =IF('iaith - language'!$K$1=2,VLOOKUP(I3,Text!$A$3:$C$353,2,FALSE),VLOOKUP(I3,Text!$A$3:$C$353,3,FALSE)) -> Arwynebedd tir (hectarau) | J6: =IF('iaith - language'!$K$1=2,VLOOKUP(J3,Text!$A$3:$C$353,2,FALSE),VLOOKUP(J3,Text!$A$3:$C$353,3,FALSE)) -> Cyfanswm y boblogaeth | K6: =IF('iaith - language'!$K$1=2,VLOOKUP(K3,Text!$A$3:$C$353,2,FALSE),VLOOKUP(K3,Text!$A$3:$C$353,3,FALSE)) -> Poblogaeth 3 oed | L6: =IF('iaith - language'!$K$1=2,VLOOKUP(L3,Text!$A$3:$C$353,2,FALSE),VLOOKUP(L3,Text!$A$3:$C$353,3,FALSE)) -> Poblogaeth 3 i 11 oed | M6: =IF('iaith - language'!$K$1=2,VLOOKUP(M3,Text!$A$3:$C$353,2,FALSE),VLOOKUP(M3,Text!$A$3:$C$353,3,FALSE)) -> Poblogaeth 3 i 16 oed | N6: =IF('iaith - language'!$K$1=2,VLOOKUP(N3,Text!$A$3:$C$353,2,FALSE),VLOOKUP(N3,Text!$A$3:$C$353,3,FALSE)) -> Poblogaeth 11 i 15 oed | O6: =IF('iaith - language'!$K$1=2,VLOOKUP(O3,Text!$A$3:$C$353,2,FALSE),VLOOKUP(O3,Text!$A$3:$C$353,3,FALSE)) -> Poblogaeth 11 i 20 oed | P6: =IF('iaith - language'!$K$1=2,VLOOKUP(P3,Text!$A$3:$C$353,2,FALSE),VLOOKUP(P3,Text!$A$3:$C$353,3,FALSE)) -> Poblogaeth 16 oed a throsodd | Q6: =IF('iaith - language'!$K$1=2,VLOOKUP(Q3,Text!$A$3:$C$353,2,FALSE),VLOOKUP(Q3,Text!$A$3:$C$353,3,FALSE)) -> Poblogaeth 16 i 18 oed | R6: =IF('iaith - language'!$K$1=2,VLOOKUP(R3,Text!$A$3:$C$353,2,FALSE),VLOOKUP(R3,Text!$A$3:$C$353,3,FALSE)) -> Poblogaeth 0 i 17 oed | S6: =IF('iaith - language'!$K$1=2,VLOOKUP(S3,Text!$A$3:$C$353,2,FALSE),VLOOKUP(S3,Text!$A$3:$C$353,3,FALSE)) -> Poblogaeth 18 i 64 oed | T6: =IF('iaith - language'!$K$1=2,VLOOKUP(T3,Text!$A$3:$C$353,2,FALSE),VLOOKUP(T3,Text!$A$3:$C$353,3,FALSE)) -> Poblogaeth 18 oed a throsodd | U6: =IF('iaith - language'!$K$1=2,VLOOKUP(U3,Text!$A$3:$C$353,2,FALSE),VLOOKUP(U3,Text!$A$3:$C$353,3,FALSE)) -> Poblogaeth o dan 60 oed | V6: =IF('iaith - language'!$K$1=2,VLOOKUP(V3,Text!$A$3:$C$353,2,FALSE),VLOOKUP(V3,Text!$A$3:$C$353,3,FALSE)) -> Poblogaeth 60 oed a throsodd | W6: =IF('iaith - language'!$K$1=2,VLOOKUP(W3,Text!$A$3:$C$353,2,FALSE),VLOOKUP(W3,Text!$A$3:$C$353,3,FALSE)) -> Poblogaeth 85 oed a throsodd | X6: =IF('iaith - language'!$K$1=2,VLOOKUP(X3,Text!$A$3:$C$353,2,FALSE),VLOOKUP(X3,Text!$A$3:$C$353,3,FALSE)) -> Poblogaeth oedran gweithio (16-65G/B) | Y6: =IF('iaith - language'!$K$1=2,VLOOKUP(Y3,Text!$A$3:$C$353,2,FALSE),VLOOKUP(Y3,Text!$A$3:$C$353,3,FALSE)) -> Amcangyfrifon Poblogaeth Ganol Blwyddyn, pob oed | Z6: =IF('iaith - language'!$K$1=2,VLOOKUP(Z3,Text!$A$3:$C$353,2,FALSE),VLOOKUP(Z3,Text!$A$3:$C$353,3,FALSE)) -> Amcangyfrifon Poblogaeth Ganol Blwyddyn, 18 oed a throsodd | AA6: =IF('iaith - language'!$K$1=2,VLOOKUP(AA3,Text!$A$3:$C$353,2,FALSE),VLOOKUP(AA3,Text!$A$3:$C$353,3,FALSE)) -> Amcangyfrifon Poblogaeth Ganol Blwyddyn, 65 oed a throsodd | AB6: =IF('iaith - language'!$K$1=2,VLOOKUP(AB3,Text!$A$3:$C$353,2,FALSE),VLOOKUP(AB3,Text!$A$3:$C$353,3,FALSE)) -> Swm a wariwyd ar grantiau cyfleusterau i'r anabl wedi'u cwblhau (£s) | AC6: =IF('iaith - language'!$K$1=2,VLOOKUP(AC3,Text!$A$3:$C$353,2,FALSE),VLOOKUP(AC3,Text!$A$3:$C$353,3,FALSE)) -> Praeseptau Draenio Tir | AD6: =IF('iaith - language'!$K$1=2,VLOOKUP(AD3,Text!$A$3:$C$353,2,FALSE),VLOOKUP(AD3,Text!$A$3:$C$353,3,FALSE)) -> Hyd yr arfordir a warchodir | AE6: =IF('iaith - language'!$K$1=2,VLOOKUP(AE3,Text!$A$3:$C$353,2,FALSE),VLOOKUP(AE3,Text!$A$3:$C$353,3,FALSE)) -> Nifer y Ffermydd | AF6: =IF('iaith - language'!$K$1=2,VLOOKUP(AF3,Text!$A$3:$C$353,2,FALSE),VLOOKUP(AF3,Text!$A$3:$C$353,3,FALSE)) -> Nifer yr Eiddo Masnachu | AG6: =IF('iaith - language'!$K$1=2,VLOOKUP(AG3,Text!$A$3:$C$353,2,FALSE),VLOOKUP(AG3,Text!$A$3:$C$353,3,FALSE)) -> Nifer yr Eiddo Bwyd | AH6: =IF('iaith - language'!$K$1=2,VLOOKUP(AH3,Text!$A$3:$C$353,2,FALSE),VLOOKUP(AH3,Text!$A$3:$C$353,3,FALSE)) -> Cyfanswm yr unedau goleuadau stryd | AI6: =IF('iaith - language'!$K$1=2,VLOOKUP(AI3,Text!$A$3:$C$353,2,FALSE),VLOOKUP(AI3,Text!$A$3:$C$353,3,FALSE)) -> Nifer y marwolaethau wedi'u cofrestru | AJ6: =IF('iaith - language'!$K$1=2,VLOOKUP(AJ3,Text!$A$3:$C$353,2,FALSE),VLOOKUP(AJ3,Text!$A$3:$C$353,3,FALSE)) -> Llwyth achosion Cynlluniau Gostyngiadau'r Dreth Gyngor | AK6: =IF('iaith - language'!$K$1=2,VLOOKUP(AK3,Text!$A$3:$C$353,2,FALSE),VLOOKUP(AK3,Text!$A$3:$C$353,3,FALSE)) -> Gwariant Cynlluniau Gostyngiadau'r Dreth Gyngor | AL6: =IF('iaith - language'!$K$1=2,VLOOKUP(AL3,Text!$A$3:$C$353,2,FALSE),VLOOKUP(AL3,Text!$A$3:$C$353,3,FALSE)) -> Cefnogaeth CTRS Covid-19 | AM6: =IF('iaith - language'!$K$1=2,VLOOKUP(AM3,Text!$A$3:$C$353,2,FALSE),VLOOKUP(AM3,Text!$A$3:$C$353,3,FALSE)) -> Nifer y llongau sy'n cyrraedd porthladdoedd | AN6: =IF('iaith - language'!$K$1=2,VLOOKUP(AN3,Text!$A$3:$C$353,2,FALSE),VLOOKUP(AN3,Text!$A$3:$C$353,3,FALSE)) -> Nosweithiau twristiaid (miloedd) gan gynnwys AirBnb | AO6: =IF('iaith - language'!$K$1=2,VLOOKUP(AO3,Text!$A$3:$C$353,2,FALSE),VLOOKUP(AO3,Text!$A$3:$C$353,3,FALSE)) -> Diwrnodau twristiaid (miloedd) | AP6: =IF('iaith - language'!$K$1=2,VLOOKUP(AP3,Text!$A$3:$C$353,2,FALSE),VLOOKUP(AP3,Text!$A$3:$C$353,3,FALSE)) -> Data Hawlwyr Budd-dal | BA6: =IF('iaith - language'!$K$1=2,VLOOKUP(BA3,Text!$A$3:$C$353,2,FALSE),VLOOKUP(BA3,Text!$A$3:$C$353,3,FALSE)) -> Nifer yr Hawlwyr Cymhorthdal Incwm, 18-64 oed | BE6: =IF('iaith - language'!$K$1=2,VLOOKUP(BE3,Text!$A$3:$C$353,2,FALSE),VLOOKUP(BE3,Text!$A$3:$C$353,3,FALSE)) -> Nifer y Derbynwyr Lwfans Ceisio Swydd ar Sail Incwm, 18-64 oed | BI6: =IF('iaith - language'!$K$1=2,VLOOKUP(BI3,Text!$A$3:$C$353,2,FALSE),VLOOKUP(BI3,Text!$A$3:$C$353,3,FALSE)) -> Nifer yr hawlwyr Credyd Pensiwn, 18-64 oed | BM6: =IF('iaith - language'!$K$1=2,VLOOKUP(BM3,Text!$A$3:$C$353,2,FALSE),VLOOKUP(BM3,Text!$A$3:$C$353,3,FALSE)) -> Nifer y rhai sydd yn derbyn Credyd Cynhwysol (ddim mewn cyflogaeth) 18-64 oed | BQ6: =IF('iaith - language'!$K$1=2,VLOOKUP(BQ3,Text!$A$3:$C$353,2,FALSE),VLOOKUP(BQ3,Text!$A$3:$C$353,3,FALSE)) -> Cyfanswm yr Hawlwyr Cymhorthdal Incwm | BU6: =IF('iaith - language'!$K$1=2,VLOOKUP(BU3,Text!$A$3:$C$353,2,FALSE),VLOOKUP(BU3,Text!$A$3:$C$353,3,FALSE)) -> Cyfanswm y Derbynwyr Lwfans Ceisio Swydd ar Sail Incwm | BY6: =IF('iaith - language'!$K$1=2,VLOOKUP(BY3,Text!$A$3:$C$353,2,FALSE),VLOOKUP(BY3,Text!$A$3:$C$353,3,FALSE)) -> Cyfanswm Hawlwyr Credyd Pensiwn | CC6: =IF('iaith - language'!$K$1=2,VLOOKUP(CC3,Text!$A$3:$C$353,2,FALSE),VLOOKUP(CC3,Text!$A$3:$C$353,3,FALSE)) -> Cyfanswm y rhai sy’n derbyn Credyd Cynhwysol (ddim mewn cyflogaeth) | CG6: =IF('iaith - language'!$K$1=2,VLOOKUP(CG3,Text!$A$3:$C$353,2,FALSE),VLOOKUP(CG3,Text!$A$3:$C$353,3,FALSE)) -> Nifer yr Hawlwyr Lwfans Anabledd Difrifol, 18-64 oed | CK6: =IF('iaith - language'!$K$1=2,VLOOKUP(CK3,Text!$A$3:$C$353,2,FALSE),VLOOKUP(CK3,Text!$A$3:$C$353,3,FALSE)) -> Nifer yr Hawlwyr Lwfans Byw i'r Anabl, 18-64 oed | CO6: =IF('iaith - language'!$K$1=2,VLOOKUP(CO3,Text!$A$3:$C$353,2,FALSE),VLOOKUP(CO3,Text!$A$3:$C$353,3,FALSE)) -> Nifer yr Hawlwyr Taliad Annibyniaeth Bersonol sydd yn 18-64 oed | CS6: =IF('iaith - language'!$K$1=2,VLOOKUP(CS3,Text!$A$3:$C$353,2,FALSE),VLOOKUP(CS3,Text!$A$3:$C$353,3,FALSE)) -> Hawlwyr Credyd Pensiwn, 65 oed a hŷn | CW6: =IF('iaith - language'!$K$1=2,VLOOKUP(CW3,Text!$A$3:$C$353,2,FALSE),VLOOKUP(CW3,Text!$A$3:$C$353,3,FALSE)) -> Cyfanswn yr hawlwyr Cymhorthdal Incwm, Lwfans Ceisio Gwaith, a Chredyd Pensiwn | DA6: =IF('iaith - language'!$K$1=2,VLOOKUP(DA3,Text!$A$3:$C$353,2,FALSE),VLOOKUP(DA3,Text!$A$3:$C$353,3,FALSE)) -> Stoc eiddo treth cyngor | DB6: =IF('iaith - language'!$K$1=2,VLOOKUP(DB3,Text!$A$3:$C$353,2,FALSE),VLOOKUP(DB3,Text!$A$3:$C$353,3,FALSE)) -> Hyd ffyrdd A y sir (km) | DC6: =IF('iaith - language'!$K$1=2,VLOOKUP(DC3,Text!$A$3:$C$353,2,FALSE),VLOOKUP(DC3,Text!$A$3:$C$353,3,FALSE)) -> Hyd ffyrdd B ac C (km) | DD6: =IF('iaith - language'!$K$1=2,VLOOKUP(DD3,Text!$A$3:$C$353,2,FALSE),VLOOKUP(DD3,Text!$A$3:$C$353,3,FALSE)) -> Hyd is-ffyrdd â wyneb caled (km) | DE6: =IF('iaith - language'!$K$1=2,VLOOKUP(DE3,Text!$A$3:$C$353,2,FALSE),VLOOKUP(DE3,Text!$A$3:$C$353,3,FALSE)) -> Hyd ffyrdd A y sir, adeiledig (km) | DF6: =IF('iaith - language'!$K$1=2,VLOOKUP(DF3,Text!$A$3:$C$353,2,FALSE),VLOOKUP(DF3,Text!$A$3:$C$353,3,FALSE)) -> Hyd ffyrdd B ac C, adeiledig (km) | DG6: =IF('iaith - language'!$K$1=2,VLOOKUP(DG3,Text!$A$3:$C$353,2,FALSE),VLOOKUP(DG3,Text!$A$3:$C$353,3,FALSE)) -> Hyd is-ffyrdd â wyneb caled, adeiledig (km)
B7: 0 | D7: 2023-06-01 | E7: 2023-09-01 | F7: 2023-12-01 | G7: 2024-03-01 | H7: 2023-03-01 | I7: 2024-05-01 | J7: 2023 | K7: 2023 | L7: =K7 -> 2023 | M7: =L7 -> 2023 | N7: 2023 | O7: 2023 | P7: 2023 | Q7: 2023 | R7: 2023 | S7: 2023 | T7: 2023 | U7: 2023 | V7: 2023 | W7: 2023 | X7: 2023 | Y7: 2020 | Z7: 2020 | AA7: 2020 | AB7: 2018-19 | AC7: 2024-25 | AD7: =IF('iaith - language'!$K$1=2,VLOOKUP(AD$4,Text!$A$1:$C$458,2,FALSE),VLOOKUP(AD$4,Text!$A$1:$C$458,3,FALSE)) -> Mai 2022 | AE7: 2021 | AF7: 2024-03-01 | AG7: 2024-03-01 | AH7: 2024-04-01 | AI7: 2023 | AJ7: 2023-24 | AK7: 2023-24 | AL7: 2021-22 | AM7: 2023 | AN7: 2019 | AO7: 2019 | AP7: 2023-10-01 | AQ7: 2023-11-01 | AR7: 2023-12-01 | AS7: 2024-01-01 | AT7: 2024-02-01 | AU7: 2024-03-01 | AV7: 2024-04-01 | AW7: 2024-05-01 | AX7: 2024-06-01 | AY7: 2024-07-01 | AZ7: 2024-08-01 | BA7: 2023-05-01 | BB7: 2023-08-01 | BC7: 2023-11-01 | BD7: 2024-02-01 | BE7: 2023-05-01 | BF7: 2023-08-01 | BG7: 2023-11-01 | BH7: 2024-02-01 | BI7: 2023-05-01 | BJ7: 2023-08-01 | BK7: 2023-11-01 | BL7: 2024-02-01 | BM7: 2023-05-01 | BN7: 2023-08-01 | BO7: 2023-11-01 | BP7: 2024-02-01 | BQ7: 2023-05-01 | BR7: 2023-08-01 | BS7: 2023-11-01 | BT7: 2024-02-01 | BU7: 2023-05-01 | BV7: 2023-08-01 | BW7: 2023-11-01 | BX7: 2024-02-01 | BY7: 2023-05-01 | BZ7: 2023-08-01 | CA7: 2023-11-01 | CB7: 2024-02-01 | CC7: 2023-05-01 | CD7: 2023-08-01 | CE7: 2023-11-01 | CF7: 2024-02-01 | CG7: 2023-05-01 | CH7: 2023-08-01 | CI7: 2023-11-01 | CJ7: 2024-02-01 | CK7: 2023-05-01 | CL7: 2023-08-01 | CM7: 2023-11-01 | CN7: 2024-02-01 | CO7: 2023-05-01 | CP7: 2023-08-01 | CQ7: 2023-11-01 | CR7: 2024-02-01 | CS7: 2023-05-01 | CT7: 2023-08-01 | CU7: 2023-11-01 | CV7: 2024-02-01 | CW7: 2023-05-01 | CX7: 2023-08-01 | CY7: 2023-11-01 | CZ7: 2024-02-01 | DA7: 2024-03-01 | DB7: 2024-04-01 | DC7: 2024-04-01 | DD7: 2024-04-01 | DE7: 2024-04-01 | DF7: 2024-04-01 | DG7: 2024-04-01
A9: 117 | B9: 2 | C9: =IF('iaith - language'!$K$1=2,VLOOKUP(A9,Text!$A$3:$C$353,2,FALSE),VLOOKUP(A9,Text!$A$3:$C$353,3,FALSE)) -> Sir Ynys Môn | D9: 194 | E9: 220 | F9: 218 | G9: 171 | H9: N/A | I9: 71,520 | J9: 69,842 | K9: 708 | L9: 6,726 | M9: 10,721 | N9: 4,052 | O9: 7,202 | P9: 57,856 | Q9: 2,155 | R9: 13,490 | S9: 37,431 | T9: 56,351 | U9: 45,487 | V9: 24,355 | W9: 2,366 | X9: 39,960 | Y9: 70,440 | Z9: 57,101 | AA9: 18,639 | AC9: 4,281 | AD9: 7.9 | AE9: 935 | AF9: 3,510 | AG9: 1,020 | AH9: 9,963 | AI9: 920 | AJ9: 5,554 | AK9: 6,029,938 | AL9: N/A | AM9: 3,117 | AN9: 5,514 | AO9: 707 | AP9: 1,345 | AQ9: 1,410 | AR9: 1,405 | AS9: 1,425 | AT9: 1,450 | AU9: 1,420 | AV9: 1,375 | AW9: 1,340 | AX9: 1,390 | AY9: 1,465 | AZ9: 1,480 | BA9: 166 | BB9: 157 | BC9: 150 | BD9: 145 | BE9: 201 | BF9: 141 | BG9: 121 | BH9: 108 | BI9: 0 | BJ9: 0 | BK9: 0 | BL9: 0 | BM9: 3,392 | BN9: 3,511 | BO9: 3,659 | BP9: 3,839 | BQ9: 167 | BR9: 159 | BS9: 157 | BT9: 150 | BU9: 209 | BV9: 151 | BW9: 123 | BX9: 113 | BY9: 2,086 | BZ9: 2,075 | CA9: 2,048 | CB9: 2,034 | CC9: 3,524 | CD9: 3,637 | CE9: 3,806 | CF9: 4,000 | CG9: 0 | CH9: 0 | CI9: 0 | CJ9: 0 | CK9: 73 | CL9: 73 | CM9: 73 | CN9: 68 | CO9: 3,298 | CP9: 3,401 | CQ9: 3,512 | CR9: 3,560 | CS9: 2,086 | CT9: 2,075 | CU9: 2,048 | CV9: 2,034 | CW9: 2,462 | CX9: 2,385 | CY9: 2,328 | CZ9: 2,297 | DA9: 35,810 | DB9: 145.60 | DC9: 484.50 | DD9: 559.10 | DE9: 28.10 | DF9: 59.60 | DG9: 181.50
A10: 118 | B10: 3 | C10: =IF('iaith - language'!$K$1=2,VLOOKUP(A10,Text!$A$3:$C$353,2,FALSE),VLOOKUP(A10,Text!$A$3:$C$353,3,FALSE)) -> Gwynedd | D10: 201 | E10: 204 | F10: 212 | G10: 205 | H10: N/A | I10: 254,857 | J10: 125,539 | K10: 1,223 | L10: 11,518 | M10: 18,638 | N10: 7,148 | O10: 15,965 | P10: 104,686 | Q10: 4,360 | R10: 23,749 | S10: 72,697 | T10: 101,790 | U10: 87,998 | V10: 37,541 | W10: 4,066 | X10: 77,235 | Y10: 125,171 | Z10: 101,957 | AA10: 28,562 | AC10: 124,711 | AD10: 20.1 | AE10: 1,822 | AF10: 8,480 | AG10: 2,500 | AH10: 18,072 | AI10: 1,441 | AJ10: 8,105 | AK10: 9,552,887 | AL10: N/A | AM10: 0 | AN10: 20,096 | AO10: 3,836 | AP10: 1,820 | AQ10: 1,910 | AR10: 1,950 | AS10: 1,995 | AT10: 2,020 | AU10: 1,990 | AV10: 1,905 | AW10: 1,850 | AX10: 1,950 | AY10: 2,120 | AZ10: 2,125 | BA10: 227 | BB10: 217 | BC10: 207 | BD10: 202 | BE10: 135 | BF10: 114 | BG10: 125 | BH10: 119 | BI10: 0 | BJ10: 0 | BK10: 0 | BL10: 0 | BM10: 5,121 | BN10: 5,137 | BO10: 5,264 | BP10: 5,618 | BQ10: 235 | BR10: 219 | BS10: 215 | BT10: 205 | BU10: 142 | BV10: 117 | BW10: 127 | BX10: 122 | BY10: 3,433 | BZ10: 3,393 | CA10: 3,367 | CB10: 3,343 | CC10: 5,286 | CD10: 5,309 | CE10: 5,454 | CF10: 5,809 | CG10: 0 | CH10: 0 | CI10: 0 | CJ10: 0 | CK10: 93 | CL10: 91 | CM10: 90 | CN10: 87 | CO10: 4,776 | CP10: 4,952 | CQ10: 5,070 | CR10: 5,222 | CS10: 3,433 | CT10: 3,393 | CU10: 3,367 | CV10: 3,343 | CW10: 3,810 | CX10: 3,729 | CY10: 3,709 | CZ10: 3,670 | DA10: 61,800 | DB10: 341.60 | DC10: 1,064.90 | DD10: 1,323.30 | DE10: 74.60 | DF10: 104.30 | DG10: 346.90
A11: 119 | B11: 4 | C11: =IF('iaith - language'!$K$1=2,VLOOKUP(A11,Text!$A$3:$C$353,2,FALSE),VLOOKUP(A11,Text!$A$3:$C$353,3,FALSE)) -> Conwy | D11: 194 | E11: 202 | F11: 201 | G11: 203 | H11: N/A | I11: 113,018 | J11: 118,625 | K11: 1,084 | L11: 10,678 | M11: 17,330 | N11: 6,698 | O11: 12,068 | P11: 99,493 | Q11: 3,814 | R11: 21,745 | S11: 62,662 | T11: 96,880 | U11: 75,101 | V11: 43,524 | W11: 5,236 | X11: 67,032 | Y11: 118,184 | Z11: 97,000 | AA11: 32,938 | AC11: 44,566 | AD11: 23.6 | AE11: 931 | AF11: 5,470 | AG11: 2,210 | AH11: 16,767 | AI11: 1,637 | AJ11: 9,607 | AK11: 11,719,670 | AL11: N/A | AM11: 34 | AN11: 11,135 | AO11: 7,220 | AP11: 2,230 | AQ11: 2,290 | AR11: 2,380 | AS11: 2,435 | AT11: 2,475 | AU11: 2,500 | AV11: 2,420 | AW11: 2,380 | AX11: 2,400 | AY11: 2,540 | AZ11: 2,535 | BA11: 289 | BB11: 277 | BC11: 259 | BD11: 257 | BE11: 168 | BF11: 125 | BG11: 136 | BH11: 158 | BI11: 0 | BJ11: 0 | BK11: 0 | BL11: 0 | BM11: 5,927 | BN11: 5,919 | BO11: 6,154 | BP11: 6,554 | BQ11: 295 | BR11: 285 | BS11: 272 | BT11: 264 | BU11: 174 | BV11: 132 | BW11: 143 | BX11: 166 | BY11: 3,706 | BZ11: 3,684 | CA11: 3,674 | CB11: 3,626 | CC11: 6,131 | CD11: 6,118 | CE11: 6,375 | CF11: 6,803 | CG11: 0 | CH11: 0 | CI11: 0 | CJ11: 0 | CK11: 108 | CL11: 106 | CM11: 108 | CN11: 104 | CO11: 5,975 | CP11: 6,157 | CQ11: 6,335 | CR11: 6,465 | CS11: 3,706 | CT11: 3,684 | CU11: 3,674 | CV11: 3,626 | CW11: 4,175 | CX11: 4,101 | CY11: 4,089 | CZ11: 4,056 | DA11: 58,190 | DB11: 117.50 | DC11: 666.90 | DD11: 897.30 | DE11: 51.60 | DF11: 102.90 | DG11: 419.60
A12: 120 | B12: 5 | C12: =IF('iaith - language'!$K$1=2,VLOOKUP(A12,Text!$A$3:$C$353,2,FALSE),VLOOKUP(A12,Text!$A$3:$C$353,3,FALSE)) -> Sir Ddinbych | D12: 156 | E12: 138 | F12: 135 | G12: 130 | H12: N/A | I12: 83,871 | J12: 96,198 | K12: 971 | L12: 9,596 | M12: 15,659 | N12: 6,052 | O12: 10,896 | P12: 78,896 | Q12: 3,380 | R12: 19,625 | S12: 52,263 | T12: 76,573 | U12: 64,678 | V12: 31,520 | W12: 2,845 | X12: 55,892 | Y12: 96,664 | Z12: 77,165 | AA12: 23,517 | AD12: 9.4 | AE12: 761 | AF12: 4,010 | AG12: 1,630 | AH12: 11,768 | AI12: 1,370 | AJ12: 8,830 | AK12: 10,841,284 | AL12: N/A | AN12: 7,467 | AO12: 4,401 | AP12: 1,900 | AQ12: 1,945 | AR12: 1,930 | AS12: 1,995 | AT12: 2,020 | AU12: 2,030 | AV12: 1,940 | AW12: 1,940 | AX12: 2,000 | AY12: 2,155 | AZ12: 2,170 | BA12: 309 | BB12: 304 | BC12: 275 | BD12: 264 | BE12: 128 | BF12: 111 | BG12: 112 | BH12: 139 | BI12: 0 | BJ12: 0 | BK12: 0 | BL12: 0 | BM12: 5,694 | BN12: 5,817 | BO12: 5,980 | BP12: 6,354 | BQ12: 309 | BR12: 302 | BS12: 280 | BT12: 266 | BU12: 137 | BV12: 111 | BW12: 112 | BX12: 140 | BY12: 3,100 | BZ12: 3,093 | CA12: 3,067 | CB12: 3,029 | CC12: 5,852 | CD12: 5,987 | CE12: 6,185 | CF12: 6,587 | CG12: 0 | CH12: 0 | CI12: 0 | CJ12: 0 | CK12: 127 | CL12: 118 | CM12: 115 | CN12: 112 | CO12: 6,112 | CP12: 6,299 | CQ12: 6,440 | CR12: 6,602 | CS12: 3,100 | CT12: 3,093 | CU12: 3,067 | CV12: 3,029 | CW12: 3,546 | CX12: 3,506 | CY12: 3,459 | CZ12: 3,435 | DA12: 46,390 | DB12: 139.80 | DC12: 655.30 | DD12: 623.40 | DE12: 29.70 | DF12: 49.90 | DG12: 222.20
A13: 121 | B13: 6 | C13: =IF('iaith - language'!$K$1=2,VLOOKUP(A13,Text!$A$3:$C$353,2,FALSE),VLOOKUP(A13,Text!$A$3:$C$353,3,FALSE)) -> Sir y Fflint | D13: 250 | E13: 222 | F13: 185 | G13: 202 | H13: N/A | I13: 43,983 | J13: 157,626 | K13: 1,685 | L13: 16,034 | M13: 26,095 | N13: 10,010 | O13: 18,209 | P13: 128,688 | Q13: 5,636 | R13: 32,776 | S13: 90,353 | T13: 124,850 | U13: 112,512 | V13: 45,114 | W13: 4,156 | X13: 96,061 | Y13: 156,847 | Z13: 124,648 | AA13: 33,294 | AD13: 2.8 | AE13: 519 | AF13: 5,190 | AG13: 1,680 | AH13: 20,905 | AI13: 1,694 | AJ13: 10,215 | AK13: 12,297,950 | AL13: N/A | AM13: 0 | AN13: 3,924 | AO13: 2,930 | AP13: 2,580 | AQ13: 2,645 | AR13: 2,630 | AS13: 2,565 | AT13: 2,640 | AU13: 2,590 | AV13: 2,560 | AW13: 2,605 | AX13: 2,620 | AY13: 2,745 | AZ13: 2,745 | BA13: 263 | BB13: 245 | BC13: 235 | BD13: 219 | BE13: 213 | BF13: 169 | BG13: 162 | BH13: 185 | BI13: 0 | BJ13: 0 | BK13: 0 | BL13: 0 | BM13: 7,831 | BN13: 8,010 | BO13: 8,163 | BP13: 8,414 | BQ13: 265 | BR13: 253 | BS13: 240 | BT13: 227 | BU13: 213 | BV13: 169 | BW13: 165 | BX13: 192 | BY13: 3,513 | BZ13: 3,496 | CA13: 3,467 | CB13: 3,456 | CC13: 8,073 | CD13: 8,259 | CE13: 8,430 | CF13: 8,688 | CG13: 0 | CH13: 0 | CI13: 0 | CJ13: 0 | CK13: 109 | CL13: 108 | CM13: 114 | CN13: 103 | CO13: 7,425 | CP13: 7,613 | CQ13: 7,869 | CR13: 8,023 | CS13: 3,513 | CT13: 3,496 | CU13: 3,467 | CV13: 3,456 | CW13: 3,991 | CX13: 3,918 | CY13: 3,872 | CZ13: 3,875 | DA13: 71,300 | DB13: 157.40 | DC13: 340.50 | DD13: 690.60 | DE13: 64.10 | DF13: 111.20 | DG13: 435.90
A14: 122 | B14: 7 | C14: =IF('iaith - language'!$K$1=2,VLOOKUP(A14,Text!$A$3:$C$353,2,FALSE),VLOOKUP(A14,Text!$A$3:$C$353,3,FALSE)) -> Wrecsam | D14: 155 | E14: 234 | F14: 177 | G14: 190 | H14: N/A | I14: 50,377 | J14: 136,419 | K14: 1,515 | L14: 14,262 | M14: 23,004 | N14: 8,730 | O14: 16,163 | P14: 110,833 | Q14: 4,951 | R14: 29,042 | S14: 78,821 | T14: 107,377 | U14: 99,165 | V14: 37,254 | W14: 3,520 | X14: 83,826 | Y14: 136,055 | Z14: 107,142 | AA14: 27,749 | AD14: 0.0 | AE14: 459 | AF14: 4,040 | AG14: 1,430 | AH14: 13,304 | AI14: 1,525 | AJ14: 11,064 | AK14: 12,365,432 | AL14: N/A | AN14: 1,198 | AO14: 1,544 | AP14: 2,375 | AQ14: 2,480 | AR14: 2,420 | AS14: 2,555 | AT14: 2,600 | AU14: 2,515 | AV14: 2,535 | AW14: 2,520 | AX14: 2,555 | AY14: 2,800 | AZ14: 2,900 | BA14: 339 | BB14: 329 | BC14: 316 | BD14: 295 | BE14: 122 | BF14: 115 | BG14: 118 | BH14: 146 | BI14: 0 | BJ14: 0 | BK14: 0 | BL14: 0 | BM14: 7,823 | BN14: 8,012 | BO14: 8,105 | BP14: 8,468 | BQ14: 348 | BR14: 334 | BS14: 317 | BT14: 297 | BU14: 127 | BV14: 117 | BW14: 119 | BX14: 146 | BY14: 3,317 | BZ14: 3,314 | CA14: 3,319 | CB14: 3,301 | CC14: 8,042 | CD14: 8,246 | CE14: 8,349 | CF14: 8,724 | CG14: 0 | CH14: 0 | CI14: 0 | CJ14: 0 | CK14: 129 | CL14: 131 | CM14: 126 | CN14: 125 | CO14: 7,446 | CP14: 7,680 | CQ14: 7,872 | CR14: 8,055 | CS14: 3,317 | CT14: 3,314 | CU14: 3,319 | CV14: 3,301 | CW14: 3,792 | CX14: 3,765 | CY14: 3,755 | CZ14: 3,744 | DA14: 61,700 | DB14: 115.40 | DC14: 513.00 | DD14: 520.10 | DE14: 30.70 | DF14: 126.40 | DG14: 298.40
A15: 123 | B15: 8 | C15: =IF('iaith - language'!$K$1=2,VLOOKUP(A15,Text!$A$3:$C$353,2,FALSE),VLOOKUP(A15,Text!$A$3:$C$353,3,FALSE)) -> Powys | D15: 294 | E15: 339 | F15: 302 | G15: 291 | H15: N/A | I15: 519,531 | J15: 132,597 | K15: 1,229 | L15: 11,595 | M15: 19,049 | N15: 7,320 | O15: 13,315 | P15: 111,509 | Q15: 4,300 | R15: 24,004 | S15: 70,565 | T15: 108,593 | U15: 83,492 | V15: 49,104 | W15: 5,108 | X15: 75,533 | Y15: 133,030 | Z15: 109,186 | AA15: 36,801 | AC15: 53,366 | AD15: 0.0 | AE15: 3,913 | AF15: 6,820 | AG15: 2,510 | AH15: 15,306 | AI15: 1,751 | AJ15: 9,083 | AK15: 11,106,773 | AL15: N/A | AN15: 9,103 | AO15: 3,011 | AP15: 1,660 | AQ15: 1,695 | AR15: 1,655 | AS15: 1,670 | AT15: 1,705 | AU15: 1,735 | AV15: 1,720 | AW15: 1,790 | AX15: 1,985 | AY15: 2,110 | AZ15: 2,090 | BA15: 204 | BB15: 196 | BC15: 189 | BD15: 183 | BE15: 118 | BF15: 106 | BG15: 113 | BH15: 134 | BI15: 0 | BJ15: 0 | BK15: 0 | BL15: 0 | BM15: 5,052 | BN15: 5,123 | BO15: 5,270 | BP15: 5,478 | BQ15: 212 | BR15: 199 | BS15: 190 | BT15: 186 | BU15: 126 | BV15: 116 | BW15: 119 | BX15: 147 | BY15: 3,360 | BZ15: 3,366 | CA15: 3,327 | CB15: 3,307 | CC15: 5,234 | CD15: 5,306 | CE15: 5,469 | CF15: 5,683 | CG15: 0 | CH15: 0 | CI15: 0 | CJ15: 0 | CK15: 91 | CL15: 92 | CM15: 93 | CN15: 91 | CO15: 5,602 | CP15: 5,780 | CQ15: 5,916 | CR15: 6,034 | CS15: 3,360 | CT15: 3,366 | CU15: 3,327 | CV15: 3,307 | CW15: 3,698 | CX15: 3,681 | CY15: 3,636 | CZ15: 3,640 | DA15: 66,370 | DB15: 242.60 | DC15: 2,708.20 | DD15: 2,129.10 | DE15: 34.40 | DF15: 114.30 | DG15: 220.60
A16: 124 | B16: 9 | C16: =IF('iaith - language'!$K$1=2,VLOOKUP(A16,Text!$A$3:$C$353,2,FALSE),VLOOKUP(A16,Text!$A$3:$C$353,3,FALSE)) -> Sir Ceredigion | D16: 202 | E16: 198 | F16: 190 | G16: 191 | H16: N/A | I16: 178,837 | J16: 70,909 | K16: 603 | L16: 6,004 | M16: 9,811 | N16: 3,793 | O16: 10,029 | P16: 60,171 | Q16: 2,366 | R16: 12,206 | S16: 39,485 | T16: 58,703 | U16: 46,412 | V16: 24,497 | W16: 2,700 | X16: 42,008 | Y16: 72,895 | Z16: 60,661 | AA16: 18,668 | AC16: 12,037 | AD16: 12.9 | AE16: 1,961 | AF16: 3,900 | AG16: 1,390 | AH16: 6,815 | AI16: 860 | AJ16: 5,163 | AK16: 6,476,459 | AL16: N/A | AN16: 7,197 | AO16: 1,576 | AP16: 955 | AQ16: 1,035 | AR16: 1,110 | AS16: 1,175 | AT16: 1,215 | AU16: 1,210 | AV16: 1,200 | AW16: 1,185 | AX16: 1,210 | AY16: 1,260 | AZ16: 1,280 | BA16: 107 | BB16: 105 | BC16: 92 | BD16: 91 | BE16: 71 | BF16: 70 | BG16: 70 | BH16: 69 | BI16: 0 | BJ16: 0 | BK16: 0 | BL16: 0 | BM16: 2,944 | BN16: 2,910 | BO16: 3,057 | BP16: 3,399 | BQ16: 107 | BR16: 105 | BS16: 98 | BT16: 93 | BU16: 71 | BV16: 68 | BW16: 72 | BX16: 73 | BY16: 1,871 | BZ16: 1,875 | CA16: 1,840 | CB16: 1,808 | CC16: 3,044 | CD16: 3,019 | CE16: 3,167 | CF16: 3,525 | CG16: 0 | CH16: 0 | CI16: 0 | CJ16: 0 | CK16: 30 | CL16: 26 | CM16: 33 | CN16: 29 | CO16: 3,051 | CP16: 3,130 | CQ16: 3,211 | CR16: 3,265 | CS16: 1,871 | CT16: 1,875 | CU16: 1,840 | CV16: 1,808 | CW16: 2,049 | CX16: 2,048 | CY16: 2,010 | CZ16: 1,974 | DA16: 36,080 | DB16: 158.30 | DC16: 1,166.60 | DD16: 828.30 | DE16: 34.40 | DF16: 100.80 | DG16: 126.70
A17: 125 | B17: 10 | C17: =IF('iaith - language'!$K$1=2,VLOOKUP(A17,Text!$A$3:$C$353,2,FALSE),VLOOKUP(A17,Text!$A$3:$C$353,3,FALSE)) -> Sir Benfro | D17: 273 | E17: 230 | F17: 186 | G17: 238 | H17: N/A | I17: 161,828 | J17: 126,580 | K17: 1,156 | L17: 11,657 | M17: 19,167 | N17: 7,609 | O17: 13,739 | P17: 105,539 | Q17: 4,222 | R17: 23,905 | S17: 67,958 | T17: 102,675 | U17: 81,876 | V17: 44,704 | W17: 4,739 | X17: 72,692 | Y17: 126,751 | Z17: 102,744 | AA17: 33,169 | AD17: 12.3 | AE17: 1,761 | AF17: 7,350 | AG17: 2,220 | AH17: 15,757 | AI17: 1,642 | AJ17: 8,999 | AK17: 9,849,864 | AL17: N/A | AM17: 2,423 | AN17: 14,583 | AO17: 2,052 | AP17: 2,055 | AQ17: 2,175 | AR17: 2,270 | AS17: 2,290 | AT17: 2,345 | AU17: 2,370 | AV17: 2,315 | AW17: 2,300 | AX17: 2,330 | AY17: 2,425 | AZ17: 2,470 | BA17: 312 | BB17: 292 | BC17: 280 | BD17: 263 | BE17: 160 | BF17: 150 | BG17: 160 | BH17: 160 | BI17: 0 | BJ17: 0 | BK17: 0 | BL17: 0 | BM17: 6,156 | BN17: 6,211 | BO17: 6,471 | BP17: 7,028 | BQ17: 322 | BR17: 302 | BS17: 289 | BT17: 276 | BU17: 170 | BV17: 155 | BW17: 164 | BX17: 167 | BY17: 3,549 | BZ17: 3,519 | CA17: 3,512 | CB17: 3,469 | CC17: 6,366 | CD17: 6,438 | CE17: 6,719 | CF17: 7,298 | CG17: 0 | CH17: 0 | CI17: 0 | CJ17: 0 | CK17: 52 | CL17: 53 | CM17: 51 | CN17: 51 | CO17: 6,515 | CP17: 6,711 | CQ17: 6,882 | CR17: 7,000 | CS17: 3,549 | CT17: 3,519 | CU17: 3,512 | CV17: 3,469 | CW17: 4,041 | CX17: 3,976 | CY17: 3,965 | CZ17: 3,912 | DA17: 62,850 | DB17: 160.50 | DC17: 1,220.40 | DD17: 1,111.90 | DE17: 56.30 | DF17: 172.90 | DG17: 337.80
A18: 126 | B18: 11 | C18: =IF('iaith - language'!$K$1=2,VLOOKUP(A18,Text!$A$3:$C$353,2,FALSE),VLOOKUP(A18,Text!$A$3:$C$353,3,FALSE)) -> Sir Gaerfyrddin | D18: 373 | E18: 327 | F18: 321 | G18: 323 | H18: N/A | I18: 237,112 | J18: 190,022 | K18: 1,940 | L18: 18,695 | M18: 30,302 | N18: 11,610 | O18: 21,415 | P18: 156,534 | Q18: 6,600 | R18: 38,021 | S18: 105,182 | T18: 152,001 | U18: 128,904 | V18: 61,117 | W18: 5,607 | X18: 112,450 | Y18: 190,073 | Z18: 152,810 | AA18: 45,693 | AD18: 9.1 | AE18: 3,071 | AF18: 6,980 | AG18: 2,670 | AH18: 20,506 | AI18: 2,439 | AJ18: 15,284 | AK18: 18,137,721 | AL18: N/A | AN18: 4,708 | AO18: 2,315 | AP18: 3,030 | AQ18: 3,030 | AR18: 3,050 | AS18: 3,075 | AT18: 3,205 | AU18: 3,280 | AV18: 3,320 | AW18: 3,385 | AX18: 3,380 | AY18: 3,610 | AZ18: 3,650 | BA18: 452 | BB18: 437 | BC18: 412 | BD18: 389 | BE18: 207 | BF18: 221 | BG18: 208 | BH18: 205 | BI18: 0 | BJ18: 0 | BK18: 0 | BL18: 0 | BM18: 9,725 | BN18: 9,968 | BO18: 10,182 | BP18: 11,007 | BQ18: 459 | BR18: 439 | BS18: 418 | BT18: 392 | BU18: 213 | BV18: 227 | BW18: 208 | BX18: 215 | BY18: 5,279 | BZ18: 5,279 | CA18: 5,261 | CB18: 5,224 | CC18: 10,049 | CD18: 10,292 | CE18: 10,532 | CF18: 11,383 | CG18: 0 | CH18: 0 | CI18: 0 | CJ18: 0 | CK18: 109 | CL18: 111 | CM18: 109 | CN18: 106 | CO18: 11,493 | CP18: 11,798 | CQ18: 12,121 | CR18: 12,356 | CS18: 5,279 | CT18: 5,279 | CU18: 5,261 | CV18: 5,224 | CW18: 5,951 | CX18: 5,945 | CY18: 5,887 | CZ18: 5,831 | DA18: 89,940 | DB18: 251.40 | DC18: 1,615.60 | DD18: 1,671.70 | DE18: 93.30 | DF18: 197.50 | DG18: 411.50
A19: 127 | B19: 12 | C19: =IF('iaith - language'!$K$1=2,VLOOKUP(A19,Text!$A$3:$C$353,2,FALSE),VLOOKUP(A19,Text!$A$3:$C$353,3,FALSE)) -> Abertawe | D19: 496 | E19: 470 | F19: 432 | G19: 417 | H19: N/A | I19: 37,764 | J19: 250,004 | K19: 2,551 | L19: 23,859 | M19: 37,707 | N19: 14,040 | O19: 31,557 | P19: 207,529 | Q19: 8,440 | R19: 47,970 | S19: 151,801 | T19: 202,034 | U19: 185,023 | V19: 64,982 | W19: 6,823 | X19: 160,173 | Y19: 246,563 | Z19: 199,723 | AA19: 48,958 | AD19: 7.9 | AE19: 381 | AF19: 7,780 | AG19: 2,920 | AH19: 29,034 | AI19: 2,739 | AJ19: 21,102 | AK19: 24,153,460 | AL19: N/A | AM19: 86 | AN19: 5,424 | AO19: 3,125 | AP19: 4,970 | AQ19: 5,025 | AR19: 5,000 | AS19: 5,045 | AT19: 5,235 | AU19: 5,340 | AV19: 5,215 | AW19: 5,195 | AX19: 5,280 | AY19: 5,680 | AZ19: 5,565 | BA19: 671 | BB19: 649 | BC19: 625 | BD19: 598 | BE19: 348 | BF19: 344 | BG19: 311 | BH19: 339 | BI19: 0 | BJ19: 0 | BK19: 0 | BL19: 0 | BM19: 15,411 | BN19: 15,764 | BO19: 15,967 | BP19: 16,914 | BQ19: 690 | BR19: 663 | BS19: 641 | BT19: 610 | BU19: 357 | BV19: 357 | BW19: 317 | BX19: 351 | BY19: 6,643 | BZ19: 6,637 | CA19: 6,618 | CB19: 6,580 | CC19: 15,847 | CD19: 16,227 | CE19: 16,454 | CF19: 17,430 | CG19: 0 | CH19: 0 | CI19: 0 | CJ19: 0 | CK19: 124 | CL19: 125 | CM19: 114 | CN19: 113 | CO19: 15,410 | CP19: 15,780 | CQ19: 16,190 | CR19: 16,496 | CS19: 6,643 | CT19: 6,637 | CU19: 6,618 | CV19: 6,580 | CW19: 7,690 | CX19: 7,657 | CY19: 7,576 | CZ19: 7,541 | DA19: 115,360 | DB19: 120.20 | DC19: 231.20 | DD19: 782.00 | DE19: 70.70 | DF19: 138.90 | DG19: 653.50
A20: 128 | B20: 13 | C20: =IF('iaith - language'!$K$1=2,VLOOKUP(A20,Text!$A$3:$C$353,2,FALSE),VLOOKUP(A20,Text!$A$3:$C$353,3,FALSE)) -> Castell-nedd Port Talbot | D20: - | E20: 161 | F20: 157 | G20: 134 | H20: N/A | I20: 44,227 | J20: 144,894 | K20: 1,524 | L20: 14,346 | M20: 22,740 | N20: 8,494 | O20: 16,430 | P20: 119,385 | Q20: 4,988 | R20: 28,823 | S20: 84,939 | T20: 116,071 | U20: 103,726 | V20: 41,168 | W20: 3,578 | X20: 90,177 | Y20: 144,386 | Z20: 116,296 | AA20: 30,254 | AD20: 2.9 | AE20: 224 | AF20: 4,090 | AG20: 1,810 | AH20: 19,639 | AI20: 1,721 | AJ20: 15,461 | AK20: 18,973,967 | AL20: N/A | AM20: 163 | AN20: 922 | AO20: 1,146 | AP20: 2,505 | AQ20: 2,585 | AR20: 2,540 | AS20: 2,575 | AT20: 2,640 | AU20: 2,665 | AV20: 2,660 | AW20: 2,620 | AX20: 2,700 | AY20: 2,820 | AZ20: 2,915 | BA20: 590 | BB20: 567 | BC20: 537 | BD20: 518 | BE20: 123 | BF20: 136 | BG20: 142 | BH20: 144 | BI20: 0 | BJ20: 0 | BK20: 0 | BL20: 0 | BM20: 9,927 | BN20: 10,118 | BO20: 10,266 | BP20: 10,856 | BQ20: 598 | BR20: 575 | BS20: 541 | BT20: 523 | BU20: 124 | BV20: 142 | BW20: 145 | BX20: 149 | BY20: 4,337 | BZ20: 4,311 | CA20: 4,286 | CB20: 4,260 | CC20: 10,218 | CD20: 10,418 | CE20: 10,593 | CF20: 11,201 | CG20: 0 | CH20: 0 | CI20: 0 | CJ20: 0 | CK20: 97 | CL20: 88 | CM20: 87 | CN20: 84 | CO20: 11,096 | CP20: 11,391 | CQ20: 11,644 | CR20: 11,850 | CS20: 4,337 | CT20: 4,311 | CU20: 4,286 | CV20: 4,260 | CW20: 5,059 | CX20: 5,028 | CY20: 4,972 | CZ20: 4,932 | DA20: 67,160 | DB20: 118.00 | DC20: 116.10 | DD20: 599.40 | DE20: 66.30 | DF20: 68.80 | DG20: 479.50
A21: 129 | B21: 14 | C21: =IF('iaith - language'!$K$1=2,VLOOKUP(A21,Text!$A$3:$C$353,2,FALSE),VLOOKUP(A21,Text!$A$3:$C$353,3,FALSE)) -> Pen-y-bont ar Ogwr | D21: 182 | E21: 176 | F21: 142 | G21: 170 | H21: N/A | I21: 25,079 | J21: 148,576 | K21: 1,638 | L21: 15,240 | M21: 23,904 | N21: 8,799 | O21: 16,239 | P21: 121,687 | Q21: 5,020 | R21: 30,301 | S21: 86,940 | T21: 118,274 | U21: 107,234 | V21: 41,342 | W21: 3,629 | X21: 92,165 | Y21: 147,539 | Z21: 118,204 | AA21: 30,168 | AD21: 2.4 | AE21: 197 | AF21: 5,110 | AG21: 1,780 | AH21: 19,666 | AI21: 1,641 | AJ21: 12,437 | AK21: 15,566,192 | AL21: N/A | AN21: 2,664 | AO21: 3,061 | AP21: 2,425 | AQ21: 2,530 | AR21: 2,410 | AS21: 2,465 | AT21: 2,495 | AU21: 2,500 | AV21: 2,450 | AW21: 2,550 | AX21: 2,625 | AY21: 2,775 | AZ21: 2,735 | BA21: 483 | BB21: 466 | BC21: 450 | BD21: 428 | BE21: 133 | BF21: 110 | BG21: 114 | BH21: 119 | BI21: 0 | BJ21: 0 | BK21: 0 | BL21: 0 | BM21: 8,476 | BN21: 8,609 | BO21: 8,810 | BP21: 9,297 | BQ21: 491 | BR21: 474 | BS21: 456 | BT21: 438 | BU21: 135 | BV21: 119 | BW21: 117 | BX21: 130 | BY21: 3,581 | BZ21: 3,585 | CA21: 3,576 | CB21: 3,527 | CC21: 8,720 | CD21: 8,875 | CE21: 9,095 | CF21: 9,604 | CG21: 0 | CH21: 0 | CI21: 0 | CJ21: 0 | CK21: 114 | CL21: 111 | CM21: 110 | CN21: 109 | CO21: 9,374 | CP21: 9,628 | CQ21: 9,846 | CR21: 9,980 | CS21: 3,581 | CT21: 3,585 | CU21: 3,576 | CV21: 3,527 | CW21: 4,207 | CX21: 4,178 | CY21: 4,149 | CZ21: 4,095 | DA21: 66,090 | DB21: 104.00 | DC21: 139.00 | DD21: 548.30 | DE21: 52.30 | DF21: 83.30 | DG21: 445.90
A22: 130 | B22: 15 | C22: =IF('iaith - language'!$K$1=2,VLOOKUP(A22,Text!$A$3:$C$353,2,FALSE),VLOOKUP(A22,Text!$A$3:$C$353,3,FALSE)) -> Bro Morgannwg | D22: 322 | E22: 262 | F22: 245 | G22: 278 | H22: N/A | I22: 33,126 | J22: 136,448 | K22: 1,510 | L22: 14,314 | M22: 22,797 | N22: 8,544 | O22: 15,363 | P22: 111,085 | Q22: 4,823 | R22: 28,638 | S22: 77,556 | T22: 107,810 | U22: 96,876 | V22: 39,572 | W22: 3,634 | X22: 82,522 | Y22: 135,295 | Z22: 107,403 | AA22: 28,838 | AD22: 4.0 | AE22: 289 | AF22: 3,630 | AG22: 1,560 | AH22: 16,124 | AI22: 1,438 | AJ22: 8,990 | AK22: 11,535,215 | AL22: N/A | AM22: 26 | AN22: 2,240 | AO22: 3,669 | AP22: 2,230 | AQ22: 2,250 | AR22: 2,285 | AS22: 2,310 | AT22: 2,335 | AU22: 2,355 | AV22: 2,410 | AW22: 2,460 | AX22: 2,465 | AY22: 2,695 | AZ22: 2,675 | BA22: 321 | BB22: 307 | BC22: 296 | BD22: 273 | BE22: 158 | BF22: 148 | BG22: 150 | BH22: 139 | BI22: 0 | BJ22: 0 | BK22: 0 | BL22: 0 | BM22: 6,232 | BN22: 6,407 | BO22: 6,512 | BP22: 6,848 | BQ22: 328 | BR22: 310 | BS22: 293 | BT22: 277 | BU22: 162 | BV22: 156 | BW22: 153 | BX22: 141 | BY22: 2,777 | BZ22: 2,776 | CA22: 2,773 | CB22: 2,741 | CC22: 6,419 | CD22: 6,586 | CE22: 6,710 | CF22: 7,056 | CG22: 0 | CH22: 0 | CI22: 0 | CJ22: 0 | CK22: 64 | CL22: 61 | CM22: 60 | CN22: 58 | CO22: 6,236 | CP22: 6,444 | CQ22: 6,619 | CR22: 6,758 | CS22: 2,777 | CT22: 2,776 | CU22: 2,773 | CV22: 2,741 | CW22: 3,267 | CX22: 3,242 | CY22: 3,219 | CZ22: 3,159 | DA22: 61,990 | DB22: 75.30 | DC22: 371.10 | DD22: 595.90 | DE22: 21.40 | DF22: 53.50 | DG22: 377.50
A23: 131 | B23: 16 | C23: =IF('iaith - language'!$K$1=2,VLOOKUP(A23,Text!$A$3:$C$353,2,FALSE),VLOOKUP(A23,Text!$A$3:$C$353,3,FALSE)) -> Rhondda Cynon Taf | D23: 286 | E23: 283 | F23: 306 | G23: 301 | H23: N/A | I23: 42,415 | J23: 243,406 | K23: 2,691 | L23: 25,066 | M23: 39,843 | N23: 14,955 | O23: 29,030 | P23: 198,506 | Q23: 8,508 | R23: 50,603 | S23: 144,714 | T23: 192,803 | U23: 180,178 | V23: 63,228 | W23: 5,613 | X23: 153,324 | Y23: 241,873 | Z23: 191,775 | AA23: 46,755 | AD23: 0.0 | AE23: 265 | AF23: 7,430 | AG23: 3,000 | AH23: 29,981 | AI23: 2,780 | AJ23: 23,453 | AK23: 25,655,786 | AL23: N/A | AN23: 1,283 | AO23: 1,575 | AP23: 4,710 | AQ23: 4,775 | AR23: 4,770 | AS23: 4,520 | AT23: 4,685 | AU23: 4,615 | AV23: 4,595 | AW23: 4,600 | AX23: 4,510 | AY23: 4,900 | AZ23: 4,910 | BA23: 943 | BB23: 903 | BC23: 845 | BD23: 805 | BE23: 180 | BF23: 213 | BG23: 296 | BH23: 267 | BI23: 0 | BJ23: 0 | BK23: 0 | BL23: 0 | BM23: 14,991 | BN23: 15,359 | BO23: 15,768 | BP23: 16,568 | BQ23: 952 | BR23: 906 | BS23: 861 | BT23: 819 | BU23: 186 | BV23: 217 | BW23: 306 | BX23: 279 | BY23: 6,736 | BZ23: 6,693 | CA23: 6,643 | CB23: 6,599 | CC23: 15,430 | CD23: 15,825 | CE23: 16,283 | CF23: 17,102 | CG23: 0 | CH23: 0 | CI23: 0 | CJ23: 0 | CK23: 152 | CL23: 152 | CM23: 147 | CN23: 147 | CO23: 16,938 | CP23: 17,407 | CQ23: 17,778 | CR23: 18,051 | CS23: 6,736 | CT23: 6,693 | CU23: 6,643 | CV23: 6,599 | CW23: 7,874 | CX23: 7,816 | CY23: 7,810 | CZ23: 7,697 | DA23: 111,540 | DB23: 171.00 | DC23: 199.70 | DD23: 933.10 | DE23: 76.10 | DF23: 127.80 | DG23: 797.30
A24: 132 | B24: 17 | C24: =IF('iaith - language'!$K$1=2,VLOOKUP(A24,Text!$A$3:$C$353,2,FALSE),VLOOKUP(A24,Text!$A$3:$C$353,3,FALSE)) -> Merthyr Tudful | D24: 90 | E24: 69 | F24: 70 | G24: 73 | H24: N/A | I24: 11,196 | J24: 61,080 | K24: 723 | L24: 6,792 | M24: 10,554 | N24: 3,808 | O24: 7,046 | P24: 49,188 | Q24: 2,080 | R24: 13,326 | S24: 35,882 | T24: 47,754 | U24: 45,125 | V24: 15,955 | W24: 1,330 | X24: 38,100 | Y24: 60,424 | Z24: 47,544 | AA24: 11,394 | AD24: 0.0 | AE24: 51 | AF24: 1,800 | AG24: 770 | AH24: 7,902 | AI24: 714 | AJ24: 5,792 | AK24: 6,801,574 | AL24: N/A | AN24: 552 | AO24: 1,160 | AP24: 1,230 | AQ24: 1,240 | AR24: 1,235 | AS24: 1,195 | AT24: 1,240 | AU24: 1,190 | AV24: 1,165 | AW24: 1,185 | AX24: 1,190 | AY24: 1,270 | AZ24: 1,265 | BA24: 243 | BB24: 231 | BC24: 218 | BD24: 214 | BE24: 64 | BF24: 65 | BG24: 68 | BH24: 89 | BI24: 0 | BJ24: 0 | BK24: 0 | BL24: 0 | BM24: 4,291 | BN24: 4,386 | BO24: 4,465 | BP24: 4,691 | BQ24: 246 | BR24: 237 | BS24: 222 | BT24: 217 | BU24: 66 | BV24: 70 | BW24: 74 | BX24: 89 | BY24: 1,784 | BZ24: 1,782 | CA24: 1,778 | CB24: 1,766 | CC24: 4,412 | CD24: 4,516 | CE24: 4,597 | CF24: 4,833 | CG24: 0 | CH24: 0 | CI24: 0 | CJ24: 0 | CK24: 55 | CL24: 52 | CM24: 54 | CN24: 51 | CO24: 4,717 | CP24: 4,857 | CQ24: 4,988 | CR24: 5,082 | CS24: 1,784 | CT24: 1,782 | CU24: 1,778 | CV24: 1,766 | CW24: 2,096 | CX24: 2,089 | CY24: 2,074 | CZ24: 2,072 | DA24: 27,560 | DB24: 29.40 | DC24: 52.80 | DD24: 223.50 | DE24: 22.20 | DF24: 40.70 | DG24: 193.00
A25: 133 | B25: 18 | C25: =IF('iaith - language'!$K$1=2,VLOOKUP(A25,Text!$A$3:$C$353,2,FALSE),VLOOKUP(A25,Text!$A$3:$C$353,3,FALSE)) -> Caerffili | D25: 175 | E25: 174 | F25: 204 | G25: 208 | H25: N/A | I25: 27,739 | J25: 182,236 | K25: 1,997 | L25: 18,616 | M25: 29,865 | N25: 11,268 | O25: 21,033 | P25: 148,682 | Q25: 6,277 | R25: 37,840 | S25: 107,174 | T25: 144,396 | U25: 133,340 | V25: 48,896 | W25: 4,158 | X25: 113,601 | Y25: 181,731 | Z25: 144,061 | AA25: 35,672 | AD25: 0.0 | AE25: 238 | AF25: 5,060 | AG25: 2,000 | AH25: 27,172 | AI25: 2,116 | AJ25: 16,048 | AK25: 16,632,359 | AL25: N/A | AN25: 933 | AO25: 1,421 | AP25: 3,600 | AQ25: 3,630 | AR25: 3,600 | AS25: 3,525 | AT25: 3,640 | AU25: 3,620 | AV25: 3,590 | AW25: 3,610 | AX25: 3,625 | AY25: 3,835 | AZ25: 3,755 | BA25: 606 | BB25: 581 | BC25: 553 | BD25: 531 | BE25: 248 | BF25: 242 | BG25: 242 | BH25: 254 | BI25: 0 | BJ25: 0 | BK25: 0 | BL25: 0 | BM25: 11,617 | BN25: 11,953 | BO25: 12,154 | BP25: 12,738 | BQ25: 618 | BR25: 595 | BS25: 565 | BT25: 542 | BU25: 255 | BV25: 247 | BW25: 253 | BX25: 261 | BY25: 5,219 | BZ25: 5,201 | CA25: 5,175 | CB25: 5,139 | CC25: 11,980 | CD25: 12,307 | CE25: 12,531 | CF25: 13,145 | CG25: 0 | CH25: 0 | CI25: 0 | CJ25: 0 | CK25: 92 | CL25: 86 | CM25: 85 | CN25: 88 | CO25: 13,194 | CP25: 13,539 | CQ25: 13,852 | CR25: 14,079 | CS25: 5,215 | CT25: 5,201 | CU25: 5,171 | CV25: 5,139 | CW25: 6,092 | CX25: 6,043 | CY25: 5,993 | CZ25: 5,942 | DA25: 80,880 | DB25: 98.90 | DC25: 217.30 | DD25: 861.00 | DE25: 30.40 | DF25: 130.00 | DG25: 699.30
A26: 134 | B26: 19 | C26: =IF('iaith - language'!$K$1=2,VLOOKUP(A26,Text!$A$3:$C$353,2,FALSE),VLOOKUP(A26,Text!$A$3:$C$353,3,FALSE)) -> Blaenau Gwent | D26: 68 | E26: 57 | F26: 55 | G26: 66 | H26: N/A | I26: 10,873 | J26: 69,508 | K26: 742 | L26: 6,758 | M26: 10,760 | N26: 3,977 | O26: 7,578 | P26: 57,350 | Q26: 2,356 | R26: 13,768 | S26: 41,434 | T26: 55,740 | U26: 50,381 | V26: 19,127 | W26: 1,569 | X26: 43,867 | Y26: 70,020 | Z26: 56,401 | AA26: 14,177 | AD26: 0.0 | AE26: 72 | AF26: 2,130 | AG26: 1,050 | AH26: 12,989 | AI26: 888 | AJ26: 8,282 | AK26: 9,703,463 | AL26: N/A | AN26: 418 | AO26: 574 | AP26: 1,740 | AQ26: 1,730 | AR26: 1,660 | AS26: 1,710 | AT26: 1,775 | AU26: 1,755 | AV26: 1,755 | AW26: 1,730 | AX26: 1,745 | AY26: 1,815 | AZ26: 1,760 | BA26: 260 | BB26: 249 | BC26: 237 | BD26: 225 | BE26: 176 | BF26: 114 | BG26: 121 | BH26: 138 | BI26: 0 | BJ26: 0 | BK26: 0 | BL26: 0 | BM26: 5,439 | BN26: 5,493 | BO26: 5,668 | BP26: 5,980 | BQ26: 263 | BR26: 253 | BS26: 242 | BT26: 233 | BU26: 176 | BV26: 115 | BW26: 125 | BX26: 140 | BY26: 2,267 | BZ26: 2,274 | CA26: 2,270 | CB26: 2,228 | CC26: 5,593 | CD26: 5,667 | CE26: 5,865 | CF26: 6,177 | CG26: 0 | CH26: 0 | CI26: 0 | CJ26: 0 | CK26: 44 | CL26: 43 | CM26: 41 | CN26: 44 | CO26: 5,720 | CP26: 5,868 | CQ26: 6,025 | CR26: 6,147 | CS26: 2,267 | CT26: 2,274 | CU26: 2,270 | CV26: 2,228 | CW26: 2,706 | CX26: 2,642 | CY26: 2,637 | CZ26: 2,601 | DA26: 33,150 | DB26: 51.00 | DC26: 67.70 | DD26: 389.70 | DE26: 20.20 | DF26: 47.00 | DG26: 387.80
A27: 135 | B27: 20 | C27: =IF('iaith - language'!$K$1=2,VLOOKUP(A27,Text!$A$3:$C$353,2,FALSE),VLOOKUP(A27,Text!$A$3:$C$353,3,FALSE)) -> Torfaen | D27: 95 | E27: 153 | F27: 109 | G27: 119 | H27: N/A | I27: 12,624 | J27: 94,354 | K27: 1,042 | L27: 9,845 | M27: 15,571 | N27: 5,774 | O27: 10,680 | P27: 76,882 | Q27: 3,330 | R27: 19,712 | S27: 54,502 | T27: 74,642 | U27: 67,891 | V27: 26,463 | W27: 2,568 | X27: 57,934 | Y27: 94,832 | Z27: 75,369 | AA27: 19,543 | AD27: 0.0 | AE27: 117 | AF27: 2,920 | AG27: 1,190 | AH27: 13,681 | AI27: 1,072 | AJ27: 9,506 | AK27: 10,256,444 | AL27: N/A | AN27: 495 | AO27: 864 | AP27: 2,020 | AQ27: 2,080 | AR27: 2,065 | AS27: 2,050 | AT27: 2,080 | AU27: 2,145 | AV27: 2,105 | AW27: 2,065 | AX27: 2,115 | AY27: 2,255 | AZ27: 2,325 | BA27: 266 | BB27: 255 | BC27: 244 | BD27: 235 | BE27: 106 | BF27: 99 | BG27: 110 | BH27: 105 | BI27: 0 | BJ27: 0 | BK27: 0 | BL27: 0 | BM27: 6,623 | BN27: 6,761 | BO27: 6,899 | BP27: 7,193 | BQ27: 270 | BR27: 257 | BS27: 252 | BT27: 241 | BU27: 105 | BV27: 98 | BW27: 111 | BX27: 106 | BY27: 2,565 | BZ27: 2,567 | CA27: 2,581 | CB27: 2,558 | CC27: 6,835 | CD27: 6,989 | CE27: 7,138 | CF27: 7,438 | CG27: 0 | CH27: 0 | CI27: 0 | CJ27: 0 | CK27: 45 | CL27: 45 | CM27: 43 | CN27: 37 | CO27: 6,588 | CP27: 6,795 | CQ27: 6,907 | CR27: 6,998 | CS27: 2,565 | CT27: 2,567 | CU27: 2,581 | CV27: 2,558 | CW27: 2,940 | CX27: 2,922 | CY27: 2,944 | CZ27: 2,905 | DA27: 43,240 | DB27: 30.50 | DC27: 101.60 | DD27: 326.20 | DE27: 16.20 | DF27: 70.80 | DG27: 292.90
A28: 136 | B28: 21 | C28: =IF('iaith - language'!$K$1=2,VLOOKUP(A28,Text!$A$3:$C$353,2,FALSE),VLOOKUP(A28,Text!$A$3:$C$353,3,FALSE)) -> Sir Fynwy | D28: 228 | E28: 240 | F28: 251 | G28: 237 | H28: N/A | I28: 85,031 | J28: 95,826 | K28: 851 | L28: 8,502 | M28: 14,149 | N28: 5,520 | O28: 9,978 | P28: 80,468 | Q28: 3,242 | R28: 17,604 | S28: 52,719 | T28: 78,222 | U28: 62,996 | V28: 32,829 | W28: 3,545 | X28: 56,302 | Y28: 95,164 | Z28: 77,843 | AA28: 24,340 | AC28: 108,559 | AD28: 0.0 | AE28: 1,017 | AF28: 3,230 | AG28: 1,210 | AH28: 11,000 | AI28: 1,086 | AJ28: 5,500 | AK28: 7,403,264 | AL28: N/A | AN28: 1,540 | AO28: 1,725 | AP28: 1,195 | AQ28: 1,260 | AR28: 1,215 | AS28: 1,205 | AT28: 1,275 | AU28: 1,310 | AV28: 1,315 | AW28: 1,315 | AX28: 1,300 | AY28: 1,395 | AZ28: 1,400 | BA28: 126 | BB28: 117 | BC28: 110 | BD28: 109 | BE28: 140 | BF28: 128 | BG28: 140 | BH28: 152 | BI28: 0 | BJ28: 0 | BK28: 0 | BL28: 0 | BM28: 3,310 | BN28: 3,384 | BO28: 3,515 | BP28: 3,731 | BQ28: 130 | BR28: 118 | BS28: 111 | BT28: 113 | BU28: 142 | BV28: 130 | BW28: 147 | BX28: 157 | BY28: 1,843 | BZ28: 1,849 | CA28: 1,839 | CB28: 1,835 | CC28: 3,438 | CD28: 3,514 | CE28: 3,661 | CF28: 3,884 | CG28: 0 | CH28: 0 | CI28: 0 | CJ28: 0 | CK28: 57 | CL28: 55 | CM28: 54 | CN28: 54 | CO28: 3,709 | CP28: 3,776 | CQ28: 3,900 | CR28: 3,985 | CS28: 1,843 | CT28: 1,849 | CU28: 1,839 | CV28: 1,835 | CW28: 2,115 | CX28: 2,097 | CY28: 2,097 | CZ28: 2,105 | DA28: 44,010 | DB28: 58.70 | DC28: 617.10 | DD28: 839.60 | DE28: 14.90 | DF28: 71.30 | DG28: 190.50
A29: 137 | B29: 22 | C29: =IF('iaith - language'!$K$1=2,VLOOKUP(A29,Text!$A$3:$C$353,2,FALSE),VLOOKUP(A29,Text!$A$3:$C$353,3,FALSE)) -> Casnewydd | D29: 236 | E29: 233 | F29: 230 | G29: 240 | H29: N/A | I29: 19,044 | J29: 159,298 | K29: 2,080 | L29: 19,059 | M29: 29,322 | N29: 10,509 | O29: 19,003 | P29: 125,847 | Q29: 5,582 | R29: 37,221 | S29: 94,486 | T29: 122,077 | U29: 122,053 | V29: 37,244 | W29: 3,472 | X29: 99,943 | Y29: 156,447 | Z29: 120,851 | AA29: 26,654 | AC29: 903,106 | AD29: 0.0 | AE29: 149 | AF29: 4,640 | AG29: 1,790 | AH29: 20,694 | AI29: 1,589 | AJ29: 12,151 | AK29: 13,299,708 | AL29: N/A | AM29: 395 | AN29: 1,698 | AO29: 3,880 | AP29: 4,665 | AQ29: 4,740 | AR29: 4,585 | AS29: 4,620 | AT29: 4,785 | AU29: 4,785 | AV29: 4,835 | AW29: 4,870 | AX29: 4,935 | AY29: 5,200 | AZ29: 5,200 | BA29: 448 | BB29: 426 | BC29: 394 | BD29: 370 | BE29: 241 | BF29: 226 | BG29: 276 | BH29: 275 | BI29: 0 | BJ29: 0 | BK29: 0 | BL29: 0 | BM29: 11,318 | BN29: 11,610 | BO29: 11,724 | BP29: 12,351 | BQ29: 458 | BR29: 435 | BS29: 401 | BT29: 379 | BU29: 246 | BV29: 230 | BW29: 285 | BX29: 279 | BY29: 3,839 | BZ29: 3,815 | CA29: 3,776 | CB29: 3,755 | CC29: 11,602 | CD29: 11,921 | CE29: 12,041 | CF29: 12,675 | CG29: 0 | CH29: 0 | CI29: 0 | CJ29: 0 | CK29: 71 | CL29: 66 | CM29: 68 | CN29: 66 | CO29: 9,442 | CP29: 9,741 | CQ29: 9,973 | CR29: 10,146 | CS29: 3,839 | CT29: 3,815 | CU29: 3,776 | CV29: 3,755 | CW29: 4,543 | CX29: 4,480 | CY29: 4,462 | CZ29: 4,413 | DA29: 71,240 | DB29: 50.60 | DC29: 196.00 | DD29: 462.80 | DE29: 21.40 | DF29: 77.90 | DG29: 462.50
A30: 138 | B30: 23 | C30: =IF('iaith - language'!$K$1=2,VLOOKUP(A30,Text!$A$3:$C$353,2,FALSE),VLOOKUP(A30,Text!$A$3:$C$353,3,FALSE)) -> Caerdydd | D30: 567 | E30: 578 | F30: 559 | G30: 541 | H30: N/A | I30: 14,230 | J30: 369,122 | K30: 3,976 | L30: 37,943 | M30: 59,772 | N30: 22,129 | O30: 52,202 | P30: 301,608 | Q30: 13,028 | R30: 75,980 | S30: 238,552 | T30: 293,142 | U30: 295,781 | V30: 73,341 | W30: 7,343 | X30: 250,389 | Y30: 369,202 | Z30: 293,830 | AA30: 52,807 | AC30: 166,743 | AD30: 2.4 | AE30: 62 | AF30: 12,860 | AG30: 4,090 | AH30: 42,929 | AI30: 2,991 | AJ30: 28,554 | AK30: 34,516,047 | AL30: N/A | AM30: 165 | AN30: 4,805 | AO30: 19,296 | AP30: 9,040 | AQ30: 9,315 | AR30: 9,210 | AS30: 9,205 | AT30: 9,565 | AU30: 9,790 | AV30: 9,725 | AW30: 9,845 | AX30: 9,995 | AY30: 10,895 | AZ30: 10,665 | BA30: 1,013 | BB30: 978 | BC30: 929 | BD30: 889 | BE30: 463 | BF30: 464 | BG30: 449 | BH30: 439 | BI30: 0 | BJ30: 0 | BK30: 0 | BL30: 0 | BM30: 23,378 | BN30: 23,795 | BO30: 24,229 | BP30: 25,396 | BQ30: 1,019 | BR30: 992 | BS30: 939 | BT30: 905 | BU30: 477 | BV30: 479 | BW30: 464 | BX30: 453 | BY30: 7,511 | BZ30: 7,462 | CA30: 7,410 | CB30: 7,343 | CC30: 23,990 | CD30: 24,443 | CE30: 24,913 | CF30: 26,105 | CG30: 0 | CH30: 0 | CI30: 0 | CJ30: 0 | CK30: 176 | CL30: 174 | CM30: 164 | CN30: 153 | CO30: 18,656 | CP30: 19,136 | CQ30: 19,564 | CR30: 19,944 | CS30: 7,511 | CT30: 7,462 | CU30: 7,410 | CV30: 7,343 | CW30: 9,007 | CX30: 8,933 | CY30: 8,813 | CZ30: 8,701 | DA30: 165,480 | DB30: 106.90 | DC30: 138.30 | DD30: 890.90 | DE30: 58.50 | DF30: 97.90 | DG30: 880.00
A32: 139 | C32: =IF('iaith - language'!$K$1=2,VLOOKUP(A32,Text!$A$3:$C$353,2,FALSE),VLOOKUP(A32,Text!$A$3:$C$353,3,FALSE)) -> Cyfanswm AU | D32: =SUM(D9:D31) -> 5,037 | E32: =SUM(E9:E31) -> 5,170 | F32: =SUM(F9:F31) -> 4,887 | G32: =SUM(G9:G31) -> 4,928 | H32: =SUM(H9:H30) -> 0 | I32: =SUM(I9:I31) -> 2,078,283 | J32: =SUM(J9:J30) -> 3,179,107 | K32: 33,441 | L32: 317,104 | M32: 506,762 | N32: 190,839 | O32: 375,139 | P32: 2,612,422 | Q32: 109,459 | R32: 640,350 | S32: 1,848,116 | T32: 2,538,757 | U32: 2,276,228 | V32: 902,879 | W32: 87,605 | X32: 1,961,185 | Y32: 3,169,586 | Z32: 2,539,714 | AA32: 668,590 | AB32: 0 | AC32: 1,417,368 | AD32: 117.62 | AE32: =SUM(AE9:AE30) -> 19,195 | AF32: =SUM(AF9:AF30) -> 116,430 | AG32: =SUM(AG9:AG30) -> 42,430 | AH32: =SUM(AH9:AH30) -> 399,974 | AI32: 36,054 | AJ32: 259,180 | AK32: 302,875,457 | AL32: =SUM(AL9:AL30) -> 0 | AM32: 6,409 | AN32: 107,900 | AO32: 71,088 | AP32: 60,280 | AQ32: 61,775 | AR32: 61,375 | AS32: 61,605 | AT32: 63,425 | AU32: 63,710 | AV32: 63,110 | AW32: 63,340 | AX32: 64,305 | AY32: =SUM(AY9:AY30) -> 68,765 | AZ32: =SUM(AZ9:AZ30) -> 68,615 | BA32: 8,638 | BB32: 8,288 | BC32: 7,853 | BD32: 7,503 | BE32: 3,903 | BF32: 3,611 | BG32: 3,744 | BH32: 3,883 | BI32: 0 | BJ32: 0 | BK32: 0 | BL32: 0 | BM32: 180,678 | BN32: 184,257 | BO32: 188,282 | BP32: 198,722 | BQ32: 8,782 | BR32: 8,412 | BS32: 8,000 | BT32: 7,653 | BU32: 4,013 | BV32: 3,723 | BW32: 3,849 | BX32: 4,016 | BY32: 82,316 | BZ32: 82,046 | CA32: 81,607 | CB32: 80,928 | CC32: 186,085 | CD32: 189,899 | CE32: 194,367 | CF32: 205,150 | CG32: 0 | CH32: 0 | CI32: 0 | CJ32: 0 | CK32: 2,012 | CL32: 1,967 | CM32: 1,939 | CN32: 1,880 | CO32: 182,773 | CP32: 187,883 | CQ32: 192,514 | CR32: =SUM(CR9:CR30) -> 196,098 | CS32: 82,312 | CT32: 82,046 | CU32: =SUM(CU9:CU30) -> 81,603 | CV32: 80,928 | CW32: 95,111 | CX32: 94,181 | CY32: 93,456 | CZ32: 92,597 | DA32: =SUM(DA9:DA30) -> 1,478,130 | DB32: 2,844.60 | DC32: 12,883.80 | DD32: 17,807.20 | DE32: 967.80 | DF32: 2,147.70 | DG32: 8,860.80
B35: 27 | D35: =IF('iaith - language'!K1=2,VLOOKUP(B35,Text!$A$3:$C$353,2),VLOOKUP(B35,Text!$A$3:$C$353,3)) -> Yr Is-adran Polisi Cyllid Llywodraeth Leol a Chynaliadwyedd, Llywodraeth Cymru
B36: 30 | D36: =IF('iaith - language'!K1=2,VLOOKUP(B36,Text!$A$3:$C$353,2),VLOOKUP(B36,Text!$A$3:$C$353,3)) -> Os oes gennych ymholiadau, cysylltwch â:
B37: 29 | D37: LGFPSettlement@Gov.Wales
B39: 33 | D39: =IF('iaith - language'!K1=2,VLOOKUP(B39,Text!$A$3:$C$353,2),VLOOKUP(B39,Text!$A$3:$C$353,3)) -> Nodiadau:
B40: 34 | D40: =IF('iaith - language'!K1=2,VLOOKUP(B40,Text!$A$3:$C$353,2),VLOOKUP(B40,Text!$A$3:$C$353,3)) -> 1 Caiff y set ddata hon ei chymryd fel cyfartaledd 3 blynedd yn y setliad.
B41: 273
